Cogmind - Beta 15 X1 @@@ ROGUE MODE // 2024.11.27 @ 21:33:54 Player: alice_fexa Result: Heading to fleet! Performance ------------- Evolutions (9) 4500 Regions Visited (28) 5600 Robots Destroyed (391) 1955 Value Destroyed (21183) 21183 Prototype IDs (295) 5900 Alien Tech Used (11) 2200 Bonus (51658) 51658 TOTAL SCORE: 92996 Bonus ------- High Alert Combat Kills 1363 Follower Combat Kills 2738 Network Hubs Disabled 400 Met Zhirov 300 Built Enhanced Grunts 300 A7 Reached Mainframe 300 Met R17 at Cetus 500 Used Core Reset Matrix 3000 Met R17 at Research 2000 Recovered Sigix Corpse 2000 Destroyed MAIN.C Guards 500 Met MAIN.C 5000 Destroyed MAIN.C Shell 5000 Destroyed MAIN.C 10000 Destroyed A8 300 Destroyed A6 400 Destroyed A5 500 Destroyed A4 700 Destroyed A3 800 Destroyed A2 1000 Destroyed Architect 15000 Win 3000 Friendly Fire -3443 Cogmind --------- Core Integrity 595/1600 Matter 277/300 Energy 1071/1122 System Corruption 0% +Membrane Temperature Cool (54) Movement Treading (39) Location To Fleet Rendezvous Parts ------- > --- POWER (2) -------- Chain-Quantum Reactor > --- PROPULSION (5) --- Treaded Armored-Cooled Exoskeleton > --- UTILITY (15) ----- Armored Scrap Engine Experimental Cooling System Experimental Coolant Injector Large Storage Unit Spectral Analyzer Experimental Targeting Computer Experimental Targeting Computer Experimental Core Analyzer Advanced Kinecellerator Experimental Weapon Cycler Experimental Phase Shifter Experimental Powered Armor Experimental Powered Armor AEGIS Remote Shield > --- WEAPON (4) ------- Hvy. Ballistic Hardcell Construct/C > --- INVENTORY (15) --- Zero-point Reactor Desublimator Experimental Cooling System Experimental Energy Well (600) Experimental Matter Compressor (500) Experimental Matter Compressor (500) Advanced Kinecellerator Experimental Weapon Cycler Experimental Phase Shifter Experimental Phase Shifter Centrium Linked Plating Heavy Regenerative Plating Spacefold Activator Sigix Corpse Peak State ------------ > --- POWER ------------ Chain-Quantum Reactor > --- PROPULSION ------- Treaded Armored-Cooled Exoskeleton > --- UTILITY ---------- Armored Scrap Engine Experimental Coolant Injector High-capacity Storage Unit Quantum Shading Machine Spectral Analyzer Experimental Core Analyzer Advanced Kinecellerator Experimental Weapon Cycler Centrium Medium Armor Plating Heavy Regenerative Plating Graphene Brace Improved Energy Mantle AEGIS Remote Shield > --- WEAPON ----------- Graviton Cannon Hvy. Ballistic Hardcell Construct/C > --- INVENTORY -------- Zero-point Reactor Experimental Coolant Injector Experimental Energy Well Experimental Energy Well Experimental Matter Compressor Advanced Gravity Neutralizer Quantum Shading Machine Advanced Weapon Cycler Experimental Utility Shielding Centrium Medium Armor Plating Heavy Regenerative Plating Integrity Redistributor Integrity Redistributor Spacefold Activator Hypercooled Linear Accelerator Hypercooled Linear Accelerator Hypercooled Linear Accelerator Graviton Cannon [Rating: 241] Favorites ----------- Power Constructs Engine Heavy Ion Engine Reactor Constructs Propulsion Constructs Treads Constructs Wheel Wheel Utility High-capacity Storage Unit Device Armored Scrap Engine Storage High-capacity Storage Unit Processor Advanced Targeting Computer Hackware Improved System Shield Protection Centrium Medium Armor Plating Weapon Constructs Energy Gun Advanced Variable Charge Gun Energy Cannon Advanced Beam Cannon Ballistic Gun Advanced KE Penetrator Ballistic Cannon Constructs Launcher Long-range Missile Launcher Special Weapon Plasma Cutter Piercing Weapon Plasma Lance Build | -11 -10 -10 -9 -9 -8 -8 -8 -6 -6 -6 -6 -6 -5 -5 -5 -5 -4 -4 -4 -4 -3 -3 -2 -2 -2 -1 -1 -1 ------- Run | Yrd Mat Min Mat Min Mat Sto Rec Fac Ext Cet Arc Hub Fac Upp Upp Zhi Pro Fac Upp Upp Res Tes Res Qua Sec Acc Com Ac0 Slots Evolved 18 | . . . 2 . 2 . . 4 . . . . 2 . . . . 2 . . 2 . 2 . . 2 . . Power 1 | . . . . . . . . . . . . . 1 . . . . . . . . . . . . . . . Propulsion 3 | . . . 1 . . . . 1 . . . . 1 . . . . . . . . . . . . . . . Utility 13 | . . . 1 . 2 . . 2 . . . . . . . . . 2 . . 2 . 2 . . 2 . . Weapon 1 | . . . . . . . . 1 . . . . . . . . . . . . . . . . . . . . Parts Attached 248 | 6 11 2 14 3 16 22 3 4 6 6 5 7 12 . . 2 1 19 . . 17 1 5 15 13 10 40 8 Power 7 | 1 1 . 1 . 1 2 . . . . . . . . . . . . . . . . . . . . 1 . Engine 6 | 1 1 . 1 . 1 2 . . . . . . . . . . . . . . . . . . . . . . Core . | . . . . . . . . . . . . . . . . . . . . . . . . . . . . . Reactor 1 | . . . . . . . . . . . . . . . . . . . . . . . . . . . 1 . Propulsion 26 | 2 . 1 6 1 7 7 2 . . . . . . . . . . . . . . . . . . . . . Treads 16 | 1 . . 5 . 5 5 . . . . . . . . . . . . . . . . . . . . . . Leg . | . . . . . . . . . . . . . . . . . . . . . . . . . . . . . Wheel 10 | 1 . 1 1 1 2 2 2 . . . . . . . . . . . . . . . . . . . . . Hover . | . . . . . . . . . . . . . . . . . . . . . . . . . . . . . Flight . | . . . . . . . . . . . . . . . . . . . . . . . . . . . . . Utility 172 | 1 4 1 5 2 7 5 1 3 5 3 5 6 11 . . 2 1 18 . . 13 . 5 12 10 10 34 8 Device 104 | . 2 1 1 2 5 3 1 3 2 . 4 3 6 . . . 1 10 . . 9 . 4 9 7 5 21 5 Storage 14 | 1 2 . 1 . . . . . . 1 . . . . . 1 . 1 . . . . . . 2 . 5 . Processor 19 | . . . . . 1 . . . 1 1 . 1 2 . . . . 1 . . 2 . . . 1 3 6 . Hackware 5 | . . . . . . . . . . . . . . . . . . 1 . . 1 . 1 . . 2 . . Protection 30 | . . . 3 . 1 2 . . 2 1 1 2 3 . . 1 . 5 . . 1 . . 3 . . 2 3 Artifact . | . . . . . . . . . . . . . . . . . . . . . . . . . . . . . Weapon 43 | 2 6 . 2 . 1 8 . 1 1 3 . 1 1 . . . . 1 . . 4 1 . 3 3 . 5 . Energy Gun 11 | . 2 . . . . 5 . . . 1 . . . . . . . 1 . . 1 1 . . . . . . Energy Cannon 4 | . . . 2 . . . . . . 1 . 1 . . . . . . . . . . . . . . . . Ballistic Gun 13 | 2 3 . . . . 1 . 1 . 1 . . . . . . . . . . 2 . . 2 1 . . . Ballistic Cannon 6 | . . . . . . 1 . . . . . . . . . . . . . . . . . 1 1 . 3 . Launcher 7 | . 1 . . . 1 . . . 1 . . . 1 . . . . . . . . . . . 1 . 2 . Special Weapon 1 | . . . . . . 1 . . . . . . . . . . . . . . . . . . . . . . Impact Weapon . | . . . . . . . . . . . . . . . . . . . . . . . . . . . . . Slashing Weapon . | . . . . . . . . . . . . . . . . . . . . . . . . . . . . . Piercing Weapon 1 | . . . . . . . . . . . . . . . . . . . . . 1 . . . . . . . Special Melee Weapon . | . . . . . . . . . . . . . . . . . . . . . . . . . . . . . Unidentified Prototypes 38 | . . . 2 1 . 5 1 . . 4 . 1 1 . . 3 . . 1 . 4 1 . 2 4 . 6 2 Parts Lost 15 | . . . . . . 4 . . 1 . . . 2 . . . . 1 . . 1 . . 3 . . 2 1 Power 2 | . . . . . . . . . . . . . . . . . . . . . 1 . . . . . 1 . Propulsion 2 | . . . . . . 2 . . . . . . . . . . . . . . . . . . . . . . Utility 10 | . . . . . . 1 . . 1 . . . 2 . . . . 1 . . . . . 3 . . 1 1 Weapon 1 | . . . . . . 1 . . . . . . . . . . . . . . . . . . . . . . Highest Loss Streak 2 | . . . . . . 2 . . 1 . . . 1 . . . . 1 . . 1 . . 1 . . 2 1 To Critical Strikes . | . . . . . . . . . . . . . . . . . . . . . . . . . . . . . Average Backups 18 | 1 11 20 19 19 18 18 18 18 19 19 20 20 19 20 20 20 20 19 20 19 19 19 19 19 19 19 18 13 Power . | . 1 1 1 2 2 2 1 2 1 . . . . . . . . . . . . . . . . . . 1 Propulsion . | . 2 4 3 4 4 2 1 1 . . . . . . . . . . . . . . . . . . . . Utility 10 | . 1 3 3 5 4 5 5 7 11 13 14 14 13 14 14 13 13 12 13 13 14 14 13 11 11 11 11 11 Weapon 5 | . 6 11 10 8 7 8 9 5 5 5 6 6 5 6 6 6 6 6 6 5 4 4 5 5 5 5 3 . Tool/Special . | . . . . . . . . . . . . . . . . . . . . . . . . . . . . . Unused Backups 149 | . 5 . 8 1 3 6 7 7 5 5 . 1 . . . 2 . 1 . . 10 4 2 49 6 6 9 12 Power 21 | . 2 . 1 . . . 2 . 1 1 . . . . . . . . . . 1 . . 8 1 2 2 . Propulsion 16 | . . . 1 . . . . . 1 . . . . . . . . . . . . . . 14 . . . . Utility 76 | . . . 2 1 . 3 1 4 3 2 . 1 . . . 2 . 1 . . 6 1 2 21 5 4 5 12 Weapon 35 | . 3 . 4 . 3 3 4 3 . 2 . . . . . . . . . . 3 3 . 5 . . 2 . Tool/Special 1 | . . . . . . . . . . . . . . . . . . . . . . . . 1 . . . . Average Slot Usage (%) 70 | . 97 100 99 99 97 99 82 72 67 65 65 66 57 58 58 50 58 62 62 65 63 63 64 64 65 68 62 62 Engine 3 | . 14 14 11 11 8 9 9 5 6 6 6 6 . . . . . . . . . . . . . . . . Reactor 2 | . . . . . . . . . . . . . 4 5 5 5 5 5 5 5 4 4 4 4 4 3 3 3 Treads 5 | . 14 14 22 22 16 17 10 . . . . . 4 . . . . . . . . . . 1 4 3 3 3 Leg 1 | . . . . . . . 2 6 6 6 6 6 . 4 5 5 5 5 5 5 2 . . . . . . . Wheel 2 | . 14 14 11 11 9 8 6 6 1 . . . . . . . . . . . . . . . . . . . Device 19 | . 11 14 14 21 18 18 13 19 17 13 14 13 11 11 11 9 11 20 20 20 23 22 25 29 29 27 24 25 Storage 6 | . 14 14 11 11 9 9 9 6 6 6 6 6 5 5 5 5 5 5 5 5 4 4 4 4 4 3 4 3 Processor 9 | . . . . . 7 9 9 6 8 13 13 13 11 11 11 11 11 10 10 10 9 13 12 9 11 11 12 15 Protection 5 | . . . 6 . 8 8 9 6 5 5 4 6 4 5 5 5 5 5 5 5 4 4 3 4 4 3 5 5 Energy Gun 3 | . 1 27 13 . . 12 9 . . . . . 4 4 5 . 4 4 2 5 . 3 4 . . . . . Energy Cannon 1 | . . . 8 22 17 4 . . . 3 6 6 . . . . . . . . . . . . . . . . Ballistic Gun 1 | . 26 . . . . . 2 10 4 . . . . . . . . . . . 2 . . 1 . . . . Ballistic Cannon 3 | . . . . . . . . 2 6 6 6 6 5 5 5 5 5 5 5 5 3 4 4 4 8 7 3 3 Peak Build Rating 241 | 6 11 11 19 28 29 33 45 78 78 79 76 80 117 122 118 116 119 137 141 141 173 178 192 201 202 217 241 239 Average Rating 125 | 4 7 10 15 18 27 31 37 66 73 72 74 79 110 119 118 109 118 134 134 140 157 172 186 191 197 214 226 233 On Entrance 100 | . 6 11 11 18 21 29 33 45 78 71 74 75 80 109 118 118 116 111 134 141 140 173 173 192 197 201 214 228 Naked Turns . | . . . . . . . . . . . . . . . . . . . . . . . . . . . . . Heaviest Build 193 | 13 52 52 62 58 64 64 62 68 71 66 71 71 92 89 89 92 92 96 101 101 108 106 107 135 130 135 193 162 Greatest Support 175 | 20 16 16 16 10 20 40 44 66 97 97 97 97 121 157 104 104 104 165 165 165 175 126 126 138 138 138 163 163 Greatest Overweight (x) 6 | . 3 3 5 5 6 6 6 5 5 . . . . . . . . . . . . . . . . . 6 . Average Overweight (x) . | . 1 3 3 5 5 5 3 4 1 . . . . . . . . . . . . . . . . . . . Largest Inventory Capacity 20 | 8 20 20 20 20 20 20 20 20 20 20 20 20 20 20 20 20 20 20 20 20 20 20 20 20 20 20 20 15 Average Capacity 19 | 7 13 20 20 20 20 20 20 20 20 20 20 20 20 20 20 20 20 20 20 20 20 20 20 20 20 20 19 15 Most Carried 20 | 4 20 20 20 20 20 20 20 20 20 20 20 20 20 20 20 20 20 20 20 19 20 20 20 20 20 20 20 15 Average Carried 19 | 1 11 20 19 19 19 19 19 18 19 19 20 19 19 20 20 19 19 19 19 19 19 19 19 19 19 19 19 14 Final Capacity 20 | 8 20 20 20 20 20 20 20 20 20 20 20 20 20 20 20 20 20 20 20 20 20 20 20 20 20 20 15 15 Final Carried 20 | 4 20 20 20 20 20 20 19 20 20 20 20 20 20 20 20 20 20 20 19 19 20 20 20 20 20 19 15 15 Scrap Engine Consumption 212 | . . . . . . . 29 8 21 13 2 4 9 . . 3 1 8 . . 25 4 . 13 3 1 68 . Constructs Created 3 | . . . . . . . 2 1 . . . . . . . . . . . . . . . . . . . . Constructs Modified 97 | . . . . . . . 9 4 5 . . . 8 6 . . . 3 . . 17 . . 9 . . 36 . Class Distribution -------------------- 40% | Construct 20% | Alien-Construct 9% | Mutant 7% | Commander-Construct 7% | Scavenger-Mutant 5% | Alien-Gunner 4% | Commander-Mutant Dominant Class ---------------- Mutant | -10/Materials Mutant | -10/Mines Scavenger-Mutant | -9/Materials Scavenger-Mutant | -9/Mines Scavenger-Mutant | -8/Materials Mutant | -8/Storage Commander-Mutant | -8/Recycling Mutant | -6/Factory Commander-Construct | -6/Extension Commander-Construct | -6/Cetus Commander-Construct | -6/Archives Commander-Construct | -6/Hub_04(d) Construct | -5/Factory Construct | -5/Upper Caves Construct | -5/Upper Caves Construct | -5/Zhirov Construct | -4/Proximity Caves Construct | -4/Factory Construct | -4/Upper Caves Construct | -4/Upper Caves Construct | -3/Research Construct | -3/Testing Construct | -2/Research Alien-Construct | -2/Quarantine Alien-Construct | -2/Section 7 Alien-Gunner | -1/Access Alien-Construct | -1/Command Alien-Construct | -1/Access_0 Resources | -11 -10 -10 -9 -9 -8 -8 -8 -6 -6 -6 -6 -6 -5 -5 -5 -5 -4 -4 -4 -4 -3 -3 -2 -2 -2 -1 -1 -1 ----------- Run | Yrd Mat Min Mat Min Mat Sto Rec Fac Ext Cet Arc Hub Fac Upp Upp Zhi Pro Fac Upp Upp Res Tes Res Qua Sec Acc Com Ac0 Matter Collected 18379 | 250 359 151 220 50 263 365 62 251 712 210 137 241 944 148 130 409 85 878 121 104 747 97 152 1197 653 499 2808 6136 Remotely . | . . . . . . . . . . . . . . . . . . . . . . . . . . . . . Salvage Created 25332 | . 388 352 1021 199 867 1306 260 61 903 130 286 543 1436 79 118 168 67 1177 56 129 1053 333 297 1156 1515 1642 5254 4536 Parts 1201 | . 29 20 71 5 40 65 10 5 46 8 19 23 106 2 8 1 3 56 4 5 43 13 4 72 63 65 158 257 Haulers Intercepted 24 | . 1 . 4 . 2 6 . . . . . 1 . . . . . . . . 2 . 1 . 5 2 . . Recyclers Shooed 11 | . . 2 1 . . . . . 1 . . . 2 . . . . 1 . . . . 1 . 2 1 . . Parts Field Recycled . | . . . . . . . . . . . . . . . . . . . . . . . . . . . . . Retrieved Matter . | . . . . . . . . . . . . . . . . . . . . . . . . . . . . . Parts Self-Destructed 15 | . . . . . . . . . . . . . . 2 8 1 . . 4 . . . . . . . . . Prevented . | . . . . . . . . . . . . . . . . . . . . . . . . . . . . . Kills | -11 -10 -10 -9 -9 -8 -8 -8 -6 -6 -6 -6 -6 -5 -5 -5 -5 -4 -4 -4 -4 -3 -3 -2 -2 -2 -1 -1 -1 ------- Run | Yrd Mat Min Mat Min Mat Sto Rec Fac Ext Cet Arc Hub Fac Upp Upp Zhi Pro Fac Upp Upp Res Tes Res Qua Sec Acc Com Ac0 Combat Hostiles Destroyed 277 | . 12 5 20 3 15 16 2 1 14 . 2 7 29 1 2 . 2 11 1 . 15 1 . 13 14 14 31 46 Melee 1 | . . . . . . . . . . . . . . . . . . . . . . . . . . . 1 . Guns 48 | . 9 2 9 . . 9 2 1 1 . . . 4 . 2 . . 5 . . 3 1 . . . . . . Cannons 184 | . . . 5 3 11 6 . . 10 . 2 7 16 1 . . 1 6 1 . 8 . . 13 14 14 21 45 AOE 38 | . 3 3 6 . 3 . . . 3 . . . 9 . . . 1 . . . 4 . . . . . 6 . Classes Destroyed 26 | . 5 3 2 1 1 . 1 . 3 . . 1 1 . 1 . 2 . . . 2 . . . 1 . 2 . Worker 16 | . . 1 1 . . 1 . . 1 . . 1 3 . . . . . . . . 1 . . 1 1 5 . Builder 11 | . . 1 . 1 1 . . . . . . . 3 . . . . . . . . . . 2 3 . . . Tunneler 3 | . 1 1 . . . . . . . . . . . . . . . . . . . . . . . 1 . . Hauler 24 | . 1 . 4 . 2 6 . . . . . 1 . . . . . . . . 2 . 1 . 5 2 . . Recycler 22 | . . 3 1 2 3 3 2 . . . . . . . . . . 2 . . . 1 1 1 . 2 1 . Mechanic 3 | . . . . . . . . . 1 . . . 1 . . . . . . . . . . . . . 1 . Operator 10 | . . . 1 . . 1 . . . . 2 1 . . . . . . . . 1 2 . 1 . 1 . . Drone 5 | . . . . . . . . . . . . . . . . . 2 . . . 1 . . . . 2 . . Watcher 35 | . 1 . 3 . . 1 . . 2 2 . 1 4 . . . . 3 . . 2 2 2 . 2 6 4 . Swarmer 52 | . 6 3 6 2 7 2 . . 3 . . 2 9 . . . . . . . 4 1 . . 1 . 6 . Cutter 1 | . . . . . . . . . . . . . . . . . . . . . . . . . 1 . . . Saboteur 1 | . . . . . . . . . . . . . . . . . . . . . . . . . . . 1 . Grunt 58 | . 6 2 10 . 5 11 . . 7 . . 3 2 . . . . 2 . . 3 . . . 3 1 3 . Brawler 1 | . . . . . 1 . . . . . . . . . . . . . . . . . . . . . . . Duelist 4 | . . . . . . . . . 2 . . 1 . . . . . . . . . . . . . . 1 . Sentry 31 | . . . 4 . 2 3 1 1 1 . 2 . 1 1 . . . 3 . . 1 . . . 3 4 4 . Demolisher 1 | . . . . . . . . . . . . . . . . . . . . . . . . . . . 1 . Specialist 3 | . . . . . . . . . . . . 1 . . . . . 2 . . . . . . . . . . Hunter 9 | . . . . . . . . . . . . . . . 1 . . . . . . . . 2 1 1 4 . Programmer 37 | . . . . . . . . . . . . . 17 . 1 . . 4 1 . . . . . 3 6 5 . Behemoth 2 | . . . . . . . . . 1 . . . . . . . . . . . 1 . . . . . . . Quarantine Guard 11 | . . . . . . . . . . . . . . . . . . . . . . . . 11 . . . . M Guard 2 | . . . . . . . . . . . . . . . . . . . . . . . . . . . 2 . Enhanced Grunt 29 | . . . . . . . . . . . . . . . . . . . . . . . . . . . . 29 Enhanced Sentry 4 | . . . . . . . . . . . . . . . . . . . . . . . . . . . . 4 Enhanced Hunter 6 | . . . . . . . . . . . . . . . . . . . . . . . . . . . . 6 Combat Programmer 2 | . . . . . . . . . . . . . . . . . . . . . . . . . . . 2 . Striker 4 | . . . . . . . . . . . . . . . . . . . . . 4 . . . . . . . Executioner 3 | . . . . . . . . . . . . . . . . . . . . . 1 . . . 2 . . . Scrapper 1 | . . . . . . . 1 . . . . . . . . . . . . . . . . . . . . . Samaritan 4 | . . . . . . . . . . . . . . . . . 1 . . 3 . . . . . . . . Assembled 1 | . . . . 1 . . . . . . . . . . . . . . . . . . . . . . . . Thug 1 | . . . . . . . . . 1 . . . . . . . . . . . . . . . . . . . Savage 1 | . . . . . . . . . . . 1 . . . . . . . . . . . . . . . . . Best Kill Streak 9 | . 5 5 6 2 4 8 1 1 4 1 1 4 9 1 1 . 2 2 1 . 4 2 1 3 4 5 9 6 Combat Bots Only 7 | . 5 3 4 2 4 7 1 1 3 . 1 4 5 1 1 . 2 2 1 . 4 1 . 3 4 5 6 6 Max Kills in Single Turn 5 | . 2 3 2 1 2 2 1 1 3 1 2 1 5 1 1 . 1 1 1 1 2 1 1 1 1 1 3 1 Gunslinging 1 | . 1 . . . . . . . . . . . . . . . . . . . . . . . . . . . Exploded 4 | . 2 2 2 . 1 . . . 3 . . . 4 . . . 1 . . . 2 . . . . . 3 . Melee 1 | . . . . . . . . . . . . . . . . . . . . . . . . . . . 1 . Uniques/NPCs Destroyed 10 | . . . . . . . . . . 1 . . . . . . . . . . . . . . . . 2 7 A7 (-6/Cetus) MAIN.C Shell (-1/Command) MAIN.C (-1/Command) A8 (-1/Access_0) A6 (-1/Access_0) A2 (-1/Access_0) A5 (-1/Access_0) A4 (-1/Access_0) Architect (-1/Access_0) A3 (-1/Access_0) Combat | -11 -10 -10 -9 -9 -8 -8 -8 -6 -6 -6 -6 -6 -5 -5 -5 -5 -4 -4 -4 -4 -3 -3 -2 -2 -2 -1 -1 -1 -------- Run | Yrd Mat Min Mat Min Mat Sto Rec Fac Ext Cet Arc Hub Fac Upp Upp Zhi Pro Fac Upp Upp Res Tes Res Qua Sec Acc Com Ac0 Hostile Shots Fired 1509 | . 31 11 46 8 61 89 4 9 20 . . 23 102 8 12 . 20 60 4 . 39 9 . 94 54 42 225 538 Missed 622 | . 9 8 18 2 17 21 1 5 7 . . 6 29 4 7 . 12 25 2 . 14 4 . 50 15 18 70 278 Intercepted 10 | . . . . . . . . . . . . . . . . . . . . . . . . . . . 10 . Damage Taken 15097 | . 207 38 315 60 511 1059 45 79 199 96 . 330 1531 66 89 . 155 875 39 . 853 108 . 1030 846 400 2391 3775 Core 819 | . 28 . 67 9 35 118 . . 15 . . 20 60 . . . 3 . . . 107 . . 18 9 32 72 226 Absorbed by Shields 6324 | . . . . . . . . . 49 23 . . . . . . . . . . . . . 633 171 73 1707 3668 Reduced by Siege Mode 186 | . . . . . . . . . . . . . 75 . . . . . . . . . . . . . . 111 Redirected to Shielding 305 | . . . . . . . . . . . . . . . . . . . . . . . . . . . 148 157 Ignored by Resistances 991 | . . . . . . . . . . . . . . . . . . 22 . . . . . . 84 219 587 79 Regen/Repaired (Parts) 8626 | . . . . . . . . 12 18 . 27 . 201 966 . . . 274 . . 480 . 308 660 . 72 2413 3195 Core Remaining (%) 85 | 100 . 88 . 81 . . 72 . . . . 95 . . . . 93 . . 100 . 91 . . 98 . . 37 Volleys Fired 1453 | . 29 17 42 8 36 72 19 2 42 24 19 31 132 3 17 13 14 94 17 5 57 81 43 86 102 75 158 215 Largest 3 | . 2 2 2 2 2 2 2 3 2 2 2 2 2 2 2 1 1 2 2 1 3 2 1 2 2 2 2 1 Hottest 309 | . 40 90 136 136 136 136 122 82 93 137 137 137 148 152 152 72 80 152 152 72 229 309 229 264 104 104 296 296 Shots Fired 2027 | . 56 31 79 16 69 141 29 7 72 32 22 40 185 8 23 13 18 128 18 5 100 84 43 127 136 106 224 215 Gun 696 | . 54 28 54 . . 82 20 7 33 . . . 125 5 17 . 15 44 1 . 43 75 29 64 . . . . Cannon 1285 | . . . 20 16 66 59 9 . 37 32 22 40 52 3 6 13 2 84 17 5 54 9 14 63 136 106 205 215 Launcher 46 | . 2 3 5 . 3 . . . 2 . . . 8 . . . 1 . . . 3 . . . . . 19 . Special . | . . . . . . . . . . . . . . . . . . . . . . . . . . . . . Kinetic 1258 | . 54 . . . . 10 9 7 70 12 19 13 52 3 6 13 2 90 17 5 87 9 14 104 136 106 205 215 Thermal 591 | . . . 20 16 66 131 20 . . . . . 125 5 17 . 15 38 1 . 10 75 29 23 . . . . Explosive 31 | . 2 3 5 . 3 . . . 2 . . . 8 . . . 1 . . . 3 . . . . . 4 . Electromagnetic 147 | . . 28 54 . . . . . . 20 3 27 . . . . . . . . . . . . . . 15 . Robot Hit Streak 42 | . 15 4 6 8 14 26 21 6 13 9 8 14 15 2 12 25 6 17 9 2 15 10 8 24 12 15 25 42 Robot Miss Streak 6 | . 2 2 6 1 2 3 2 1 3 2 3 2 3 1 . . 1 3 . 1 4 6 3 3 5 4 5 4 Penetration Max 1 | . . . . . . . . . . . . . 1 . . . . . . . 1 . . . . . . . Secondary Targets 7 | . 2 . . . . 5 . . . . . . . . . . . . . . . . . . . . . . Max Gunslinging Chain 1 | . 1 . . . . 1 . . . . . . . . . . . . . . . . . . . . . . Shots Hit Robots 1252 | . 43 19 44 10 48 102 23 5 58 25 20 34 94 4 10 13 6 66 2 3 64 20 12 90 72 53 149 163 Core Hits 640 | . 21 13 40 6 25 41 8 3 47 13 15 19 70 1 3 1 3 28 1 3 32 7 5 34 26 22 81 72 Critical Kills 9 | . . . . . 1 . . . . . . . 1 . . . . . . 1 3 . . . 2 . 1 . Critical Parts Destroyed 26 | . 1 . . . . . . . . . . . 1 1 . 1 . 3 . . 3 . . 5 4 3 4 . Critical Strikes 75 | . 1 . 1 . 1 6 2 . . . . 2 2 1 . 1 . 3 . 1 8 . . 13 8 7 6 12 Burn 8 | . . . . . . 6 2 . . . . . . . . . . . . . . . . . . . . . Meltdown 1 | . . . . . 1 . . . . . . . . . . . . . . . . . . . . . . . Destroy 37 | . 1 . . . . . . . . . . . 2 1 . 1 . 3 . 1 8 . . 5 6 4 5 . Blast 26 | . . . . . . . . . . . . . . . . . . . . . . . . 8 2 3 1 12 Corrupt 3 | . . . 1 . . . . . . . . 2 . . . . . . . . . . . . . . . . Melee Attacks . | . . . . . . . . . . . . . . . . . . . . . . . . . . . . . Impact . | . . . . . . . . . . . . . . . . . . . . . . . . . . . . . Slashing . | . . . . . . . . . . . . . . . . . . . . . . . . . . . . . Piercing . | . . . . . . . . . . . . . . . . . . . . . . . . . . . . . Sneak Attacks . | . . . . . . . . . . . . . . . . . . . . . . . . . . . . . Combat Hostiles . | . . . . . . . . . . . . . . . . . . . . . . . . . . . . . Follow-up Attacks . | . . . . . . . . . . . . . . . . . . . . . . . . . . . . . Damage Inflicted 104397 | . 643 640 1376 236 1219 1936 387 81 2459 1237 842 1412 5639 194 358 722 313 2970 109 212 4214 1170 841 6810 6785 6794 20146 34652 Guns 8676 | . 478 288 531 . . 1177 314 81 457 . . . 1437 62 187 . 161 909 23 . 878 426 253 1014 . . . . Cannons 90489 | . . . 278 236 1013 759 73 . 1788 927 842 1412 2909 132 171 722 67 2044 86 212 2853 744 588 5796 6785 6794 18606 34652 Explosions 5232 | . 165 352 567 . 206 . . . 214 310 . . 1293 . . . 85 17 . . 483 . . . . . 1540 . Melee . | . . . . . . . . . . . . . . . . . . . . . . . . . . . . . Ramming . | . . . . . . . . . . . . . . . . . . . . . . . . . . . . . Kinetic 89875 | . 478 . . . . 114 73 81 2245 634 764 656 2909 132 171 722 67 2166 86 212 3532 744 588 6664 6785 6794 18606 34652 Thermal 7858 | . . 39 443 236 1013 1822 314 . . 310 . . 1437 62 187 . 161 787 23 . 199 426 253 146 . . . . Explosive 4209 | . 165 313 402 . 206 . . . 214 . . . 1267 . . . 85 . . . 483 . . . . . 1074 . Electromagnetic 2455 | . . 288 531 . . . . . . 293 78 756 26 . . . . 17 . . . . . . . . 466 . Impact . | . . . . . . . . . . . . . . . . . . . . . . . . . . . . . Slashing . | . . . . . . . . . . . . . . . . . . . . . . . . . . . . . Piercing . | . . . . . . . . . . . . . . . . . . . . . . . . . . . . . Highest Corruption 8 | . . . . . . . 1 6 6 6 6 2 8 8 8 8 8 3 . . . . . 3 . . . . Average Corruption 4 | . . . . . . . 1 5 6 6 4 2 5 8 8 8 8 1 . . . . . 2 . . . . Corruption Purged 13 | . . . . . . . . . . . 6 . . . . . . 4 . . . . . 3 . . . . Corruption Blocked . | . . . . . . . . . . . . . . . . . . . . . . . . . . . . . Effects 286 | . . . . . . . 11 12 48 19 4 19 92 18 21 5 21 16 . . . . . . . . . . Message Errors 76 | . . . . . . . 4 4 17 6 1 7 22 1 5 2 3 4 . . . . . . . . . . Matter Fused 67 | . . . . . . . 2 4 9 3 . 7 22 4 7 1 5 3 . . . . . . . . . . Heat Flow Errors 39 | . . . . . . . 3 . 7 2 2 2 10 4 2 1 4 2 . . . . . . . . . . Energy Discharges 33 | . . . . . . . . . 5 4 . . 14 2 1 . 2 5 . . . . . . . . . . Parts Rejected 2 | . . . . . . . . . . . . . 1 . . . 1 . . . . . . . . . . . Parts Fused 1 | . . . . . . . . . . 1 . . . . . . . . . . . . . . . . . . Data Loss (minor) 32 | . . . . . . . 1 3 7 1 1 1 10 4 2 1 1 . . . . . . . . . . . Data Loss (major) 12 | . . . . . . . 1 . . 1 . 1 4 1 3 . . 1 . . . . . . . . . . Misfires 18 | . . . . . . . . 1 2 1 . 1 6 2 . . 4 1 . . . . . . . . . . Alerts 4 | . . . . . . . . . . . . . 2 . 1 . 1 . . . . . . . . . . . Weapon Failures 2 | . . . . . . . . . 1 . . . 1 . . . . . . . . . . . . . . . Overload Shots . | . . . . . . . . . . . . . . . . . . . . . . . . . . . . . Overflow Damage 11517 | . 31 33 24 2 55 8 2 . 6 . 25 125 340 . . 162 37 295 . . 325 302 266 382 948 1580 2415 4154 Projectiles 11037 | . . . 1 2 24 8 2 . 6 . 25 125 252 . . 162 37 295 . . 307 302 266 382 948 1580 2159 4154 Explosions 480 | . 31 33 23 . 31 . . . . . . . 88 . . . . . . . 18 . . . . . 256 . Melee . | . . . . . . . . . . . . . . . . . . . . . . . . . . . . . Knockbacks 262 | . . . . . . 1 2 . 12 1 12 9 36 . 3 . . 8 . . 19 2 1 8 18 10 44 76 Impact . | . . . . . . . . . . . . . . . . . . . . . . . . . . . . . Kinetic 248 | . . . . . . 1 2 . 11 1 12 7 35 . 3 . . 8 . . 16 1 1 7 18 10 42 73 Secondary 14 | . . . . . . . . . 1 . . 2 1 . . . . . . . 3 1 . 1 . . 2 3 Self-Inflicted Damage 271 | . . . . . 38 . . . 18 94 . . 88 . . . 3 15 . . . . . . . . 15 . Shots 10 | . . . . . 1 . . . 1 1 . . 4 . . . 1 1 . . . . . . . . 1 . Rammed . | . . . . . . . . . . . . . . . . . . . . . . . . . . . . . Targets Rammed . | . . . . . . . . . . . . . . . . . . . . . . . . . . . . . Kicked . | . . . . . . . . . . . . . . . . . . . . . . . . . . . . . Crushed . | . . . . . . . . . . . . . . . . . . . . . . . . . . . . . Highest Temperature 413 | . 6 9 45 27 30 45 271 . 238 245 197 268 302 267 239 194 257 254 60 . 100 331 202 411 42 47 315 413 Average Temperature 77 | . 6 7 11 11 7 14 104 . 75 119 66 54 61 89 72 99 108 61 34 . 24 172 76 106 23 25 76 140 Received Heat Transfer 1865 | . 72 15 129 . 117 675 9 6 49 . . 159 90 . . . 21 72 . . 81 . . 4 85 21 101 159 Effects 6 | . . . . . . . . . . . . . 1 . . . . . . . . . . . . . . 5 Shutdowns 1 | . . . . . . . . . . . . . . . . . . . . . . . . . . . . 1 Energy Bleed 5 | . . . . . . . . . . . . . 1 . . . . . . . . . . . . . . 4 Siege Activations 22 | . . . . . . . . . . . . . 10 . . . . . . . . . . . . . . 12 Total Turns 275 | . . . . . . . . . . . . . 141 . . . . . . . . . . . . . . 134 Longest Duration 37 | . . . . . . . . . . . . . 37 . . . . . . . . . . . . . . 27 Martial Activations . | . . . . . . . . . . . . . . . . . . . . . . . . . . . . . Shielding Activations . | . . . . . . . . . . . . . . . . . . . . . . . . . . . . . Robots Disrupted . | . . . . . . . . . . . . . . . . . . . . . . . . . . . . . Combat Hostiles . | . . . . . . . . . . . . . . . . . . . . . . . . . . . . . Robots Corrupted 7 | . . . . . . . . . . . . 1 . . . . . . . . . 1 . . . . 4 1 Combat Hostiles 4 | . . . . . . . . . . . . . . . . . . . . . . . . . . . 3 1 Parts Fried 32 | . . 2 1 . . . . . 4 6 . 5 . . . . . . . . . 3 . 2 . . 8 1 Impact Corruptions 6 | . . . . . . . . . . . . . . . . . . . . . . 1 . 1 . . 3 1 Robots Melted 5 | . . . . . 1 2 . . . . . . . . . . . . . . . . . 2 . . . . Combat Hostiles 2 | . . . . . 1 1 . . . . . . . . . . . . . . . . . . . . . . Parts Melted 33 | . . . 2 . 6 8 1 . 3 . . . 3 . . . . . . . . 1 . 9 . . . . Heat Transferred 12464 | . . 50 731 407 1776 4107 790 . . 200 . . 1628 74 222 . 185 962 37 . 259 555 296 185 . . . . Parts Sabotaged 4 | . . . . . . . . . . . . . . . . . . . . . . . . . . . 4 . Parts Stolen . | . . . . . . . . . . . . . . . . . . . . . . . . . . . . . Parts Stripped . | . . . . . . . . . . . . . . . . . . . . . . . . . . . . . Power Chain Reactions 4 | . . 1 2 . . . . . . 1 . . . . . . . . . . . . . . . . . . Alert | -11 -10 -10 -9 -9 -8 -8 -8 -6 -6 -6 -6 -6 -5 -5 -5 -5 -4 -4 -4 -4 -3 -3 -2 -2 -2 -1 -1 -1 ------- Run | Yrd Mat Min Mat Min Mat Sto Rec Fac Ext Cet Arc Hub Fac Upp Upp Zhi Pro Fac Upp Upp Res Tes Res Qua Sec Acc Com Ac0 Maximum Alert Level 4 | . . . 1 . 1 2 . 2 3 3 2 2 2 . . . . . . . . . . 1 2 2 4 . Low Security (%) 62 | 100 100 100 85 100 57 78 100 33 30 . . 33 58 . . . . 100 . . 100 100 100 97 35 14 . . Level 1 12 | . . . 14 . 42 10 . 64 30 . 97 21 9 . . . . . . . . . . 2 62 67 1 . Level 2 9 | . . . . . . 10 . 2 12 98 2 45 31 . . . . . . . . . . . 1 17 3 . Level 3 4 | . . . . . . . . . 25 1 . . . . . . . . . . . . . . . . 24 . Level 4 10 | . . . . . . . . . . . . . . . . . . . . . . . . . . . 69 . Level 5 . | . . . . . . . . . . . . . . . . . . . . . . . . . . . . . High Security . | . . . . . . . . . . . . . . . . . . . . . . . . . . . . . Max Security . | . . . . . . . . . . . . . . . . . . . . . . . . . . . . . Peak Influence 1017 | . 183 93 272 100 300 465 169 400 1017 708 400 592 540 . . . . 150 . . 133 64 56 211 423 503 943 . Initial 559 | . . 28 . 100 . 11 169 400 49 559 234 93 215 . . . . 150 . . . 45 12 8 30 251 307 . Average 162 | . 59 19 110 15 155 166 29 245 399 629 341 313 226 . . . . 68 . . 42 13 21 79 208 303 688 . Influence Increases 14356 | . 350 178 639 113 519 1024 313 435 1644 325 214 1345 1330 35 60 5 10 764 20 . 514 303 258 645 898 737 1291 387 Destroy 0b10 Robot/C 5560 | . 240 100 400 80 300 480 80 20 720 140 80 460 580 20 40 . . 220 20 . 280 40 . 260 280 240 480 . Destroy 0b10 Robot/NC 820 | . 15 30 50 15 30 65 10 . 60 10 10 50 55 . . 5 10 25 . . 30 30 20 20 55 75 150 . Destroy Leader 1248 | . 34 20 94 10 64 136 . 10 86 . . 126 128 . 20 . . 76 . . 58 14 6 110 74 96 86 . Allied During Kill 1531 | . . . . 3 . 185 42 2 551 137 90 514 . . . . . . . . . 7 . . . . . . Successful Hack 993 | . 34 4 17 5 11 20 . 3 38 . . 38 146 . . . . 88 . . 31 135 76 69 63 143 72 . Select Force Hacks 230 | . . . . . . . 180 . . . . 50 . . . . . . . . . . . . . . . . Disable Machine 975 | . 15 . 15 . . 105 . . 75 15 30 30 150 . . . . 45 . . 15 15 60 60 120 . 90 135 Anti-Garrison Action 50 | . . . . . . . . . . . . . . . . . . . . . . . . . . . 50 . Destroy Structure 1634 | . 12 24 33 . 24 3 1 . 54 23 4 47 256 . . . . 100 . . 70 62 51 51 141 123 318 237 Advance Influence 550 | . . . . . . . . 400 . . . . . . . . . 150 . . . . . . . . . . Partial Spotted 270 | . . . . . . 15 . . . . . 15 15 . . . . 15 . . 15 . 30 60 60 . 30 15 Lose Combat Pursuer 495 | . . . 30 . 90 15 . . 60 . . 15 . 15 . . . 45 . . 15 . 15 15 105 60 15 . Influence Decreases 10262 | . 276 206 382 213 492 600 482 334 694 298 180 998 1005 278 138 5 10 653 89 . 434 325 255 598 509 508 290 10 Time Decay 8779 | . 276 206 382 193 342 520 441 334 547 278 180 538 634 278 138 5 10 551 89 . 424 305 255 576 509 498 270 . Lost Part 129 | . . . . . . 40 . . 7 . . . 10 . . . . 10 . . 10 . . 22 . . 20 10 Lost Ally 461 | . . . . 20 . 40 41 . 140 20 . 160 10 . . . . . . . . 20 . . . 10 . . Purge Threat 893 | . . . . . 150 . . . . . . 300 351 . . . . 92 . . . . . . . . . . Squads Dispatched 56 | . 2 . 2 . 2 2 . . 4 . . 7 9 . . . . 4 . . 3 3 1 2 7 6 2 . Investigation 7 | . . . 1 . 1 . . . 1 . . 2 . . . . . . . . 1 . . . . 1 . . Extermination 27 | . . . . . . . . . . . . 4 8 . . . . 3 . . . 3 1 1 3 3 1 . Reinforcement 19 | . 2 . 1 . 1 2 . . 2 . . . 1 . . . . 1 . . 2 . . 1 4 2 . . Assault 3 | . . . . . . . . . 1 . . 1 . . . . . . . . . . . . . . 1 . Garrison . | . . . . . . . . . . . . . . . . . . . . . . . . . . . . . Intercept . | . . . . . . . . . . . . . . . . . . . . . . . . . . . . . Searches Triggered . | . . . . . . . . . . . . . . . . . . . . . . . . . . . . . Construction Impeded 2 | . . . . . . . . . 1 . . . 1 . . . . . . . . . . . . . . . Haulers Reinforced 3 | . . . . . . . . . . . . . . . . . . . . . 1 . . . 2 . . . Active Scanning Responses . | . . . . . . . . . . . . . . . . . . . . . . . . . . . . . Cargo Convoy Interrupts . | . . . . . . . . . . . . . . . . . . . . . . . . . . . . . Stealth | -11 -10 -10 -9 -9 -8 -8 -8 -6 -6 -6 -6 -6 -5 -5 -5 -5 -4 -4 -4 -4 -3 -3 -2 -2 -2 -1 -1 -1 --------- Run | Yrd Mat Min Mat Min Mat Sto Rec Fac Ext Cet Arc Hub Fac Upp Upp Zhi Pro Fac Upp Upp Res Tes Res Qua Sec Acc Com Ac0 Distress Signals 43 | . 1 . 3 . 2 2 . . 1 2 . 2 1 . . . . 2 . . 4 . 1 . . . 22 . Communications Jammed 90 | . . . . . . . . . . . . . . . . . . 4 . . 39 19 1 . 13 6 8 . Distress Signals 88 | . . . . . . . . . . . . . . . . . . 3 . . 38 19 1 . 13 6 8 . Times Spotted 511 | . 18 5 31 6 23 30 7 1 40 10 16 23 37 4 2 . 9 23 1 . 26 7 9 20 27 28 45 63 Peak Tracking Total 9 | . 5 3 5 3 4 4 4 1 7 5 2 4 5 7 1 . 8 3 1 . 4 2 2 3 4 3 8 9 Tactical Retreats 31 | . . . 2 . 4 1 . . 4 . . 1 . 1 . . . 3 . . 1 . 1 1 6 2 4 . Traps | -11 -10 -10 -9 -9 -8 -8 -8 -6 -6 -6 -6 -6 -5 -5 -5 -5 -4 -4 -4 -4 -3 -3 -2 -2 -2 -1 -1 -1 ------- Run | Yrd Mat Min Mat Min Mat Sto Rec Fac Ext Cet Arc Hub Fac Upp Upp Zhi Pro Fac Upp Upp Res Tes Res Qua Sec Acc Com Ac0 Traps Triggered 38 | . . . 1 . 4 2 . 2 1 . . 3 . . . . . . . . 1 3 . 2 1 9 9 . Indirectly . | . . . . . . . . . . . . . . . . . . . . . . . . . . . . . Trap Hack Attempts . | . . . . . . . . . . . . . . . . . . . . . . . . . . . . . Triggered . | . . . . . . . . . . . . . . . . . . . . . . . . . . . . . Disarmed . | . . . . . . . . . . . . . . . . . . . . . . . . . . . . . Reprogrammed . | . . . . . . . . . . . . . . . . . . . . . . . . . . . . . Reused . | . . . . . . . . . . . . . . . . . . . . . . . . . . . . . Traps Extracted . | . . . . . . . . . . . . . . . . . . . . . . . . . . . . . Installed . | . . . . . . . . . . . . . . . . . . . . . . . . . . . . . Triggered . | . . . . . . . . . . . . . . . . . . . . . . . . . . . . . Machines | -11 -10 -10 -9 -9 -8 -8 -8 -6 -6 -6 -6 -6 -5 -5 -5 -5 -4 -4 -4 -4 -3 -3 -2 -2 -2 -1 -1 -1 ---------- Run | Yrd Mat Min Mat Min Mat Sto Rec Fac Ext Cet Arc Hub Fac Upp Upp Zhi Pro Fac Upp Upp Res Tes Res Qua Sec Acc Com Ac0 Machines Disabled 69 | . 1 . 1 . . 7 . . 6 1 2 2 10 . . . . 3 . . 1 1 4 4 8 . 8 10 Max in Single Turn 2 | . 1 . 1 . . 1 . . 1 1 1 . 2 . . . . 2 . . 1 1 1 1 1 . 2 1 Garrison Access 8 | . . . . . . 1 . . . . . . . . . . . 1 . . 3 . 1 1 . 1 . . Phase Generator 1 | . . . . . . . . . . . . . . . . . . . . . . . . . . . 1 . Network Hub 2 | . . . . . . . . . . . . 2 . . . . . . . . . . . . . . . . Machines Repaired . | . . . . . . . . . . . . . . . . . . . . . . . . . . . . . Machines Dismantled 4 | . . . . . . 1 . . 2 1 . . . . . . . . . . . . . . . . . . Machines Sabotaged 1 | . . . . . . . . . . . . 1 . . . . . . . . . . . . . . . . Overloaded Fab Kills . | . . . . . . . . . . . . . . . . . . . . . . . . . . . . . Hacking | -11 -10 -10 -9 -9 -8 -8 -8 -6 -6 -6 -6 -6 -5 -5 -5 -5 -4 -4 -4 -4 -3 -3 -2 -2 -2 -1 -1 -1 --------- Run | Yrd Mat Min Mat Min Mat Sto Rec Fac Ext Cet Arc Hub Fac Upp Upp Zhi Pro Fac Upp Upp Res Tes Res Qua Sec Acc Com Ac0 Machines Accessed 161 | . 7 1 4 1 2 10 15 4 11 1 . 9 13 . . 4 . 13 . . 8 13 7 11 9 13 4 1 Terminals 116 | . 6 1 4 1 2 9 6 3 9 1 . 9 10 . . . . 9 . . 3 9 3 8 9 10 4 . Fabricators 5 | . . . . . . . . 1 . . . . . . . . . 2 . . . 1 1 . . . . . Repair Stations 7 | . . . . . . . . . . . . . 2 . . . . . . . 1 2 1 1 . . . . Recycling Units 17 | . 1 . . . . . 7 . 2 . . . 1 . . . . 1 . . 3 . 1 . . 1 . . Scanalyzers 1 | . . . . . . . . . . . . . . . . . . . . . . . . 1 . . . . Garrison Access 8 | . . . . . . 1 . . . . . . . . . . . 1 . . 1 1 1 1 . 2 . . Total Hacks 544 | . 23 3 14 2 5 27 52 8 19 1 . 17 51 . . 17 . 64 . . 31 56 19 36 37 47 11 4 Successful 243 | . 15 2 8 1 3 14 34 3 5 . . 7 22 . . 17 . 34 . . 11 14 8 14 8 15 4 4 Failed 300 | . 7 1 6 1 2 13 18 5 14 1 . 10 29 . . . . 30 . . 20 42 11 22 29 32 7 . Catastrophic 71 | . . . 2 . . . . 1 3 1 . 4 10 . . . . 3 . . 7 15 2 6 9 8 . . Database Lockouts 1 | . 1 . . . . . . . . . . . . . . . . . . . . . . . . . . . Manual 275 | . 15 3 11 1 4 18 22 5 2 1 . 6 33 . . . . 30 . . 12 34 11 22 29 15 1 . Terminals 416 | . 22 3 14 2 5 26 23 7 15 1 . 17 43 . . . . 54 . . 16 41 12 27 37 40 11 . Fabricators 8 | . . . . . . . . 1 . . . . . . . . . 5 . . . 1 1 . . . . . Repair Stations 23 | . . . . . . . . . . . . . 6 . . . . . . . 2 10 3 2 . . . . Recycling Units 45 | . 1 . . . . . 20 . 4 . . . 2 . . . . 3 . . 11 . 2 . . 2 . . Scanalyzers 5 | . . . . . . . . . . . . . . . . . . . . . . . . 5 . . . . Garrison Access 17 | . . . . . . 1 . . . . . . . . . . . 2 . . 2 4 1 2 . 5 . . Terminal Hacks 115 | . 6 1 1 1 3 6 13 1 4 . . 3 9 . . 17 . 18 . . 5 3 2 4 2 8 4 4 Record 12 | . . . . . . . 7 . . . . . . . . 5 . . . . . . . . . . . . Part Schematic 5 | . . . . . . 1 . . . . . . . . . 4 . . . . . . . . . . . . Robot Analysis 11 | . 1 1 . . 1 1 . . . . . . 1 . . 4 . . . . . . . . . . 2 . Prototype ID Bank 15 | . 1 . . . 1 . 1 . . . . . . . . 4 . 5 . . 1 . . 1 . 1 . . Open Door 12 | . . . . . . 2 . 1 3 . . . . . . . . . . . . . . . 2 3 1 . Branch Access Points 4 | . . . . . . . . . . . . . 1 . . . . 1 . . 1 . 1 . . . . . Machine Index 1 | . . . . . . . . . . . . . . . . . . . . . . . 1 . . . . . Terminal Index 3 | . . . . . . . . . . . . . 1 . . . . 1 . . . . . . . 1 . . Alert Level 13 | . . . . . . . 3 . . . . 1 1 . . . . 3 . . . 1 . 2 . 2 . . Unreport Threat 7 | . . . . . 1 . . . . . . 2 3 . . . . 1 . . . . . . . . . . Locate Traps 13 | . 2 . 1 . . 1 . . 1 . . . 1 . . . . 3 . . 1 1 . 1 . . 1 . Recall Extermination 1 | . . . . . . . . . . . . . . . . . . 1 . . . . . . . . . . Hauler Manifests 1 | . . . . . . . . . . . . . . . . . . . . . 1 . . . . . . . Registered Prototypes 1 | . . . . . . . . . . . . . . . . . . 1 . . . . . . . . . . Zone Layout 10 | . 2 . . 1 . 1 . . . . . . 1 . . . . 2 . . 1 1 . . . 1 . . Release Object 2 | . . . . . . . 2 . . . . . . . . . . . . . . . . . . . . . Gate Test 138-A 1 | . . . . . . . . . . . . . . . . . . . . . . . . . . . . 1 Gate Test 138-B 1 | . . . . . . . . . . . . . . . . . . . . . . . . . . . . 1 Gate Test 138-C 1 | . . . . . . . . . . . . . . . . . . . . . . . . . . . . 1 Gate Test 138-END 1 | . . . . . . . . . . . . . . . . . . . . . . . . . . . . 1 Fabricator Hacks 1 | . . . . . . . . . . . . . . . . . . 1 . . . . . . . . . . Build 1 | . . . . . . . . . . . . . . . . . . 1 . . . . . . . . . . Repair Station Hacks 9 | . . . . . . . . . . . . . 3 . . . . . . . 2 2 2 . . . . . Scan Component 6 | . . . . . . . . . . . . . 2 . . . . . . . 1 2 1 . . . . . Repair 3 | . . . . . . . . . . . . . 1 . . . . . . . 1 . 1 . . . . . Recycling Unit Hacks 12 | . 1 . . . . . 7 . 1 . . . . . . . . 1 . . 1 . . . . 1 . . Retrieve Components 12 | . 1 . . . . . 7 . 1 . . . . . . . . 1 . . 1 . . . . 1 . . Scanalyzer 2 | . . . . . . . . . . . . . . . . . . . . . . . . 2 . . . . Insert Component 1 | . . . . . . . . . . . . . . . . . . . . . . . . 1 . . . . Analyze 1 | . . . . . . . . . . . . . . . . . . . . . . . . 1 . . . . Garrison Access Hacks 6 | . . . . . . 1 . . . . . . . . . . . 1 . . 1 . 1 1 . 1 . . Seal Access 6 | . . . . . . 1 . . . . . . . . . . . 1 . . 1 . 1 1 . 1 . . Unauthorized Hacks 98 | . 8 1 7 . . 7 14 2 . . . 4 10 . . . . 13 . . 2 9 3 7 6 5 . . Terminals 92 | . 8 1 7 . . 7 8 2 . . . 4 10 . . . . 13 . . 2 9 3 7 6 5 . . Assimilate 3 | . . . . . . . . . . . . . 1 . . . . 1 . . . . . . . 1 . . Botnet 32 | . 3 . 3 . . 2 2 1 . . . 2 3 . . . . 4 . . 2 3 1 2 2 2 . . Operators 5 | . . . . . . . . . . . . . 1 . . . . 1 . . . 1 1 . . 1 . . Skim 50 | . 5 1 4 . . 5 6 1 . . . . 5 . . . . 7 . . . 5 1 5 4 1 . . Sabotage 2 | . . . . . . . . . . . . 2 . . . . . . . . . . . . . . . . Fabricators . | . . . . . . . . . . . . . . . . . . . . . . . . . . . . . Repair Stations . | . . . . . . . . . . . . . . . . . . . . . . . . . . . . . Recycling Units 6 | . . . . . . . 6 . . . . . . . . . . . . . . . . . . . . . Tunnel 6 | . . . . . . . 6 . . . . . . . . . . . . . . . . . . . . . Scanalyzers . | . . . . . . . . . . . . . . . . . . . . . . . . . . . . . Garrison Access . | . . . . . . . . . . . . . . . . . . . . . . . . . . . . . Data Cores Recovered 6 | . . . 1 . . . . . . . . 1 . . . . . . . . 1 2 . 1 . . . . Used 1 | . . . . . . . . . . . . . . . . . . . . . . 1 . . . . . . Hacking Detections 118 | . 5 1 4 . 1 6 7 4 9 1 . 8 13 . . . . 11 . . 4 13 4 6 8 10 3 . Full Trace Events 3 | . . . . . . . 2 . . . . . . . . . . . . . . . . . . 1 . . Feedback Events 1 | . . . . . . . 1 . . . . . . . . . . . . . . . . . . . . . Corruption 1 | . . . . . . . 1 . . . . . . . . . . . . . . . . . . . . . Feedback Blocked . | . . . . . . . . . . . . . . . . . . . . . . . . . . . . . Robot Schematics Acquired . | . . . . . . . . . . . . . . . . . . . . . . . . . . . . . Robots Built . | . . . . . . . . . . . . . . . . . . . . . . . . . . . . . Authchips . | . . . . . . . . . . . . . . . . . . . . . . . . . . . . . Time . | . . . . . . . . . . . . . . . . . . . . . . . . . . . . . Total Robot Build Rating . | . . . . . . . . . . . . . . . . . . . . . . . . . . . . . Part Schematics Acquired 6 | . . . . . . 1 . . . . . . . . . 4 . . . . . . . 1 . . . . Parts Built 2 | . . . . . . . . . . . . . . . . . . 2 . . . . . . . . . . Authchips . | . . . . . . . . . . . . . . . . . . . . . . . . . . . . . Time 58 | . . . . . . . . . . . . . . . . . . 58 . . . . . . . . . . Total Part Build Rating 14 | . . . . . . . . . . . . . . . . . . 14 . . . . . . . . . . Parts Repaired 3 | . . . . . . . . . . . . . 1 . . . . . . . 1 . 1 . . . . . Time 238 | . . . . . . . . . . . . . 99 . . . . . . . 31 . 108 . . . . . Parts Recycled . | . . . . . . . . . . . . . . . . . . . . . . . . . . . . . Recycled Matter . | . . . . . . . . . . . . . . . . . . . . . . . . . . . . . Retrieved Matter . | . . . . . . . . . . . . . . . . . . . . . . . . . . . . . Retrieved Components 20 | . 3 . . . . . 13 . 1 . . . . . . . . 1 . . 2 . . . . . . . Parts Scanalyzed 1 | . . . . . . . . . . . . . . . . . . . . . . . . 1 . . . . Part Schematics Acquired 1 | . . . . . . . . . . . . . . . . . . . . . . . . 1 . . . . Parts Damaged . | . . . . . . . . . . . . . . . . . . . . . . . . . . . . . Bothacking | -11 -10 -10 -9 -9 -8 -8 -8 -6 -6 -6 -6 -6 -5 -5 -5 -5 -4 -4 -4 -4 -3 -3 -2 -2 -2 -1 -1 -1 ------------ Run | Yrd Mat Min Mat Min Mat Sto Rec Fac Ext Cet Arc Hub Fac Upp Upp Zhi Pro Fac Upp Upp Res Tes Res Qua Sec Acc Com Ac0 Used RIF Installer . | . . . . . . . . . . . . . . . . . . . . . . . . . . . . . Robots Hacked . | . . . . . . . . . . . . . . . . . . . . . . . . . . . . . Non-combat . | . . . . . . . . . . . . . . . . . . . . . . . . . . . . . Combat . | . . . . . . . . . . . . . . . . . . . . . . . . . . . . . Robot Hacks Applied . | . . . . . . . . . . . . . . . . . . . . . . . . . . . . . Relay Couplers Released 3 | . . . . . . . . . . . . . . . . . . . . . 3 . . . . . . . Machine Destruction 3 | . . . . . . . . . . . . . . . . . . . . . 3 . . . . . . . Fabnet Peak Effective % . | . . . . . . . . . . . . . . . . . . . . . . . . . . . . . Robots Rewired 15 | . . . . . . . . . 14 . . . . . . . . . . . . 1 . . . . . . Allies Hacked . | . . . . . . . . . . . . . . . . . . . . . . . . . . . . . Hacks Repelled . | . . . . . . . . . . . . . . . . . . . . . . . . . . . . . Allies | -11 -10 -10 -9 -9 -8 -8 -8 -6 -6 -6 -6 -6 -5 -5 -5 -5 -4 -4 -4 -4 -3 -3 -2 -2 -2 -1 -1 -1 -------- Run | Yrd Mat Min Mat Min Mat Sto Rec Fac Ext Cet Arc Hub Fac Upp Upp Zhi Pro Fac Upp Upp Res Tes Res Qua Sec Acc Com Ac0 Total Allies 44 | . . 1 . 2 . 10 . . 22 5 . . 1 . . . . 1 . . . 1 . . . 1 . . Largest Group 14 | . . 1 . 2 . 10 8 2 12 14 12 11 1 . . . . 1 . . . 1 . . . 1 . . Highest-Rated Group 864 | . . 31 . 45 . 173 139 30 471 864 673 653 26 . . . . 10 . . . 142 . . . 45 . . Highest-Rated Ally 159 | . . 31 . 31 . 29 29 16 159 159 96 96 26 . . . . 10 . . . 142 . . . 45 . . Total Orders 27 | . . . . . . . 3 2 1 5 2 10 2 . . . . . . . . . . . . 2 . . STAY 14 | . . . . . . . 2 1 1 2 1 5 1 . . . . . . . . . . . . 1 . . FOLLOW 13 | . . . . . . . 1 1 . 3 1 5 1 . . . . . . . . . . . . 1 . . Ally Attacks 433 | . . . . 12 . 80 33 . 187 32 11 74 . . . . . . . . . 4 . . . . . . Total Damage 10146 | . . . . 126 . 961 422 . 4285 914 434 2716 . . . . . . . . . 288 . . . . . . Kills 88 | . . . . 3 . 9 7 . 35 7 2 24 . . . . . . . . . 1 . . . . . . Allies Corrupted 3 | . . . . . . . . 1 . . . 1 . . . . . . . . . 1 . . . . . . Allies Melted . | . . . . . . . . . . . . . . . . . . . . . . . . . . . . . Intel | -11 -10 -10 -9 -9 -8 -8 -8 -6 -6 -6 -6 -6 -5 -5 -5 -5 -4 -4 -4 -4 -3 -3 -2 -2 -2 -1 -1 -1 ------- Run | Yrd Mat Min Mat Min Mat Sto Rec Fac Ext Cet Arc Hub Fac Upp Upp Zhi Pro Fac Upp Upp Res Tes Res Qua Sec Acc Com Ac0 Active Infowar (turns) 30486 | . 1 . . 2 . . . 739 1001 . . 1498 4544 591 574 233 604 2340 814 230 2441 1235 775 2837 1464 1325 5513 1725 Optics 15182 | . . . . . . . . . . . . . . . . . . . . . 308 1235 775 2837 1464 1325 5513 1725 Sensors 22336 | . 1 . . 2 . . . 739 1001 . . 1498 4544 591 574 233 604 2236 804 229 2312 1227 775 2455 1284 1226 1 . Terrain 2 | . . . . . . . . . . . . 1 . . . . . . . . . . 1 . . . . . Cloaking 2 | . . . . . . . . . . . . . . . . . . . . . . . . . . . 2 . Jamming 11078 | . . . . . . . . . . . . . . . . . . 2121 814 230 2196 1235 775 679 1445 1321 262 . Robot Analysis Total 11 | . 1 1 . . 1 1 . . . . . . 1 . . 4 . . . . . . . . . . 2 . Derelict Logs Recovered 8 | . . 1 . 1 . . . . . . . . . 1 3 . 1 . 1 . . . . . . . . . Drone Launches . | . . . . . . . . . . . . . . . . . . . . . . . . . . . . . Drone Recoveries . | . . . . . . . . . . . . . . . . . . . . . . . . . . . . . Exploration | -11 -10 -10 -9 -9 -8 -8 -8 -6 -6 -6 -6 -6 -5 -5 -5 -5 -4 -4 -4 -4 -3 -3 -2 -2 -2 -1 -1 -1 ------------- Run | Yrd Mat Min Mat Min Mat Sto Rec Fac Ext Cet Arc Hub Fac Upp Upp Zhi Pro Fac Upp Upp Res Tes Res Qua Sec Acc Com Ac0 Turns Passed 42842 | 49 1232 988 922 1304 1024 1972 2678 750 1719 601 360 1536 4817 619 610 315 624 2363 814 230 2441 1235 775 2837 1464 1325 5513 1725 Spaces Moved 33470 | 37 780 598 483 660 378 922 1298 418 899 238 149 889 2104 374 330 166 330 1277 587 171 2360 1834 1401 2719 1985 2269 4966 2848 Core 4 | 3 . . . . . . . . . . . . . . . . . . . . . . . . . . 1 . Treads 15248 | 2 . . . . . 17 100 . . . . . 2095 39 . . . . . . . . . 928 1985 2269 4965 2848 Legs 6431 | . . . . . . . 134 54 714 238 149 889 9 335 330 166 330 1277 587 171 1048 . . . . . . . Wheels 5449 | 32 780 598 483 660 378 905 1064 364 185 . . . . . . . . . . . . . . . . . . . Hover . | . . . . . . . . . . . . . . . . . . . . . . . . . . . . . Flight 6338 | . . . . . . . . . . . . . . . . . . . . . 1312 1834 1401 1791 . . . . Fastest Speed 39 | 50 100 145 145 155 110 155 145 121 121 126 126 126 126 111 163 163 163 125 125 125 39 39 39 39 39 39 39 39 Average Speed 87 | 99 122 145 145 155 169 168 161 163 139 126 126 126 164 158 163 163 163 125 125 125 75 39 39 39 39 39 60 39 Slowest Speed 350 | 160 145 145 155 155 170 240 229 225 165 126 126 126 165 165 163 163 163 163 125 125 125 39 39 39 39 39 350 39 Overloaded Moves . | . . . . . . . . . . . . . . . . . . . . . . . . . . . . . Propulsion Burnouts . | . . . . . . . . . . . . . . . . . . . . . . . . . . . . . Robots Hopped 54 | . . . . . . . . . . . . . . . . . . . . . . 21 23 10 . . . . Cave-ins Triggered . | . . . . . . . . . . . . . . . . . . . . . . . . . . . . . Teleports 3 | . . . . . . . . . . . . . . . . . . . . . . . . . . . 1 2 Exploration Rate (%) 63 | 4 94 98 42 98 37 98 99 8 88 68 80 52 34 58 51 60 50 33 75 20 60 96 35 96 76 50 90 97 Regions Visited 28 Branch Regions 19 Pre-discovered Areas 19 | . 1 1 . . . . 8 . . . . . . . . 3 1 3 . . . 1 . 1 . . . . Known Exits Taken 24 | . 1 . 1 . 1 1 1 1 1 1 1 1 1 1 1 1 1 1 1 1 1 1 1 1 1 1 . . Unknown Exits Taken 4 | 1 . 1 . 1 . . . . . . . . . . . . . . . . . . . . . . 1 . Scrap Searched 13 | . . 1 . 3 . . . . . . . . . 2 3 . 1 . 2 1 . . . . . . . . Spaces Dug 170 | . . . . . . . . . . . . . 22 . 3 . 22 27 6 . 15 19 8 6 15 22 2 3 Terrain Destroyed 828 | . 11 36 40 . 24 . . . 40 23 4 4 165 . 7 . 27 54 16 2 34 33 16 27 47 48 131 39 Melee . | . . . . . . . . . . . . . . . . . . . . . . . . . . . . . Projectile 477 | . . . 1 . . . . . 8 4 4 4 105 . 7 . 7 54 16 2 21 33 16 27 47 48 34 39 AOE 351 | . 11 36 39 . 24 . . . 32 19 . . 60 . . . 20 . . . 13 . . . . . 97 . Terrain Rammed . | . . . . . . . . . . . . . . . . . . . . . . . . . . . . . Walls Destroyed . | . . . . . . . . . . . . . . . . . . . . . . . . . . . . . Machines Disabled . | . . . . . . . . . . . . . . . . . . . . . . . . . . . . . Actions | -11 -10 -10 -9 -9 -8 -8 -8 -6 -6 -6 -6 -6 -5 -5 -5 -5 -4 -4 -4 -4 -3 -3 -2 -2 -2 -1 -1 -1 --------- Run | Yrd Mat Min Mat Min Mat Sto Rec Fac Ext Cet Arc Hub Fac Upp Upp Zhi Pro Fac Upp Upp Res Tes Res Qua Sec Acc Com Ac0 Total 45459 | 46 1012 688 635 930 699 1191 1858 495 1275 500 300 1268 3256 391 377 200 400 1913 646 182 2954 2250 1564 4436 2595 2645 7364 3389 Wait 8943 | . 156 66 62 246 231 114 509 37 169 187 121 319 946 9 27 3 49 461 33 6 437 325 119 1416 405 223 2010 257 Move 33336 | 36 779 597 482 659 377 921 1297 417 898 237 148 888 2103 373 329 165 329 1276 586 170 2359 1791 1357 2698 1984 2268 4965 2847 Hop 49 | . . . . . . . . . . . . . . . . . . . . . . 21 19 9 . . . . Pick Up 333 | 4 21 1 10 4 7 11 7 17 10 11 . 3 5 . . 4 1 10 . . 21 9 5 82 18 14 36 22 Fast Attach 243 | 6 3 . 4 2 11 11 5 1 2 8 4 6 17 . . 5 . 12 2 . 16 6 7 13 24 17 51 10 Attach 75 | . . . 2 . 1 4 . 4 1 2 . . 2 . . 1 . 5 1 . 6 . 2 14 6 5 13 6 Detach 22 | . 1 . 1 . . . 1 1 1 2 . . . . . . . . . . 2 . 2 4 . . 6 1 Swap 286 | . 11 4 12 2 15 15 1 2 19 4 2 8 33 6 4 1 6 31 6 1 19 1 . 20 20 16 20 7 Drop 547 | . 12 3 20 9 21 27 19 14 13 17 6 11 18 . . 8 1 24 1 . 37 12 9 93 36 27 85 24 Fire 1453 | . 29 17 42 8 36 72 19 2 42 24 19 31 132 3 17 13 14 94 17 5 57 81 43 86 102 75 158 215 Melee . | . . . . . . . . . . . . . . . . . . . . . . . . . . . . . Ram . | . . . . . . . . . . . . . . . . . . . . . . . . . . . . . Kick . | . . . . . . . . . . . . . . . . . . . . . . . . . . . . . Crush . | . . . . . . . . . . . . . . . . . . . . . . . . . . . . . Escape Stasis 34 | . . . . . . 8 . . 1 . . 2 . . . . . . . . . 3 1 1 . . 18 . Rewire 105 | . . . . . . . . . 102 . . . . . . . . . . . . 1 . . . . 2 . Trap . | . . . . . . . . . . . . . . . . . . . . . . . . . . . . . Miscellaneous 33 | . . . . . . 8 . . 17 8 . . . . . . . . . . . . . . . . . . Route ------- -11/Scrapyard -10/Materials (discovered 5 exits: *Mat x3 / *Min / [*Sub]) -10/Mines (discovered 2 exits: *Mat x2) -9/Materials (discovered 3 exits: *Mat / *Min x2) -9/Mines (discovered 2 exits: *Mat x2) -8/Materials -8/Storage (discovered 2 exits: [*Fac] / *Rec) -8/Recycling -6/Factory -6/Extension (discovered 2 exits: *Fac / *Cet) -6/Cetus (discovered 2 exits: *Fac / *Arc) -6/Archives (discovered 3 exits: *Fac / *Hub x2) -6/Hub_04(d) (discovered 2 exits: *Fac x2) -5/Factory (discovered 6 exits: *Fac x4 / *Upp x2) -5/Upper Caves -5/Upper Caves -5/Zhirov -4/Proximity Caves -4/Factory (discovered 6 exits: *Res x3 / *Upp x2 / Arm) -4/Upper Caves -4/Upper Caves -3/Research (discovered 5 exits: *Res x3 / *Tes x2) -3/Testing -2/Research (discovered 3 exits: *Acc / *Qua x2) -2/Quarantine (discovered 2 exits: *Acc / *Sec) -2/Section 7 -1/Access -1/Command (discovered 3 exits: [*Sur x2] / *Ac0) -1/Access_0 To Fleet Rendezvous History --------- Turn | Location | Event 31 | -11/Scrapyard | Discovered new exit (range 15) 50 | -11/Scrapyard | Entered Materials 51 | -10/Materials | Met a group of wandering Federalists 166 | -10/Materials | Central database locked down 201 | -10/Materials | Discovered new exit (range 8) 301 | -10/Materials | Build established: Mutant 318 | -10/Materials | Discovered new exit (range 11) 429 | -10/Materials | Learned Storage emergency access door positions 476 | -10/Materials | Learned location of Mines (-8) 511 | -10/Materials | Identified exit to Mines 537 | -10/Materials | Loaded intel: 1 repair station location 558 | -10/Materials | Loaded intel: 4 trap records 666 | -10/Materials | Discovered new exit (range 12) 1038 | -10/Materials | Discovered new exit (range 13) 1282 | -10/Materials | Entered Mines 1566 | -10/Mines | Discovered new exit (range 12) 1630 | -10/Mines | Discovered new exit (range 8) 1761 | -10/Mines | Found a hidden stash of uninstalled traps 1817 | -10/Mines | Received a Mining Laser from a helpful Derelict 1912 | -10/Mines | Learned location of Storage (-8) 2270 | -10/Mines | Entered Materials 2270 | -9/Materials | Evolved 2 slots: Propulsion x1, Utility x1 2271 | -9/Materials | Identified exit to Mines 2564 | -9/Materials | Build established: Scavenger-Mutant 2571 | -9/Materials | Discovered exit to Mines (range 13) 3005 | -9/Materials | Discovered new exit (range 15) 3192 | -9/Materials | Entered Mines 3274 | -9/Mines | Assembled infested the area 3550 | -9/Mines | Learned Materials stockpile data 3630 | -9/Mines | Discovered new exit (range 5) 3764 | -9/Mines | Found a Scrap Suit stashed away for nefarious purposes 3769 | -9/Mines | Found Scrap Suit 3855 | -9/Mines | Discovered new exit (range 8) 3867 | -9/Mines | Received a Rocket Launcher from a helpful Derelict 3894 | -9/Mines | Deemed a non-threat by the Exiles lab entrance 3946 | -9/Mines | A weapon hastily lodged in a ceiling crevice suddenly fell to the ground 4252 | -9/Mines | Found a damaged Exp. Sensor Array with a note attached 4256 | -9/Mines | Found Prototype Device 4256 | -9/Mines | Identified Exp. Sensor Array 4496 | -9/Mines | Entered Materials 4496 | -8/Materials | Evolved 2 slots: Utility x2 4497 | -8/Materials | Identified exit to Storage 5520 | -8/Materials | Entered Storage 5789 | -8/Storage | Build established: Mutant 6502 | -8/Storage | Destroyed 7 combat bots 6760 | -8/Storage | Assisted by bots powering up and referring to "LRC-V3" 7063 | -8/Storage | Discovered new exit (range 5) 7073 | -8/Storage | Build established: Commander-Mutant 7468 | -8/Storage | Used back door to open Recycling access 7468 | -8/Storage | Discovered new exit (range 3) 7470 | -8/Storage | Identified exit to Recycling 7492 | -8/Storage | Entered Recycling 7492 | -8/Recycling | Accompanied by 8 allies 7603 | -8/Recycling | Scanned before Scraplab entrance 7627 | -8/Recycling | Entered Scraplab 8399 | -8/Recycling | Discovered new exit (range 16) 8483 | -8/Recycling | Learned 2 Lower Caves zone layouts 8527 | -8/Recycling | Learned location of Lower Caves (-6) 8563 | -8/Recycling | Learned Storage stockpile data 8589 | -8/Recycling | Identified exit to Scraptown 8607 | -8/Recycling | Learned Storage emergency access door positions 8643 | -8/Recycling | Learned Factory scanalyzer intel 8673 | -8/Recycling | Learned Storage garrison access intel 8759 | -8/Recycling | Angered Scraplab inhabitants 8818 | -8/Recycling | Lost 5 allies 8839 | -8/Recycling | Found Prototype Device 8839 | -8/Recycling | Identified Scrap Engine 9341 | -8/Recycling | Build established: Construct 10169 | -8/Recycling | Identified exit to Factory 10170 | -8/Recycling | Entered Factory 10170 | -6/Factory | Accompanied by 2 allies 10170 | -6/Factory | Evolved 4 slots: Propulsion x1, Utility x2, Weapon x1 10171 | -6/Factory | Loaded intel: 4 scanalyzer locations 10912 | -6/Factory | Discovered new exit (range 6) 10917 | -6/Factory | Identified exit to Extension 10920 | -6/Factory | Entered Extension 10920 | -6/Extension | Accompanied by 1 ally 11117 | -6/Extension | Rescued a captive Derelict 11117 | -6/Extension | Rescued a captive Derelict 11343 | -6/Extension | Rescued A7 11539 | -6/Extension | Build established: Commander-Construct 11928 | -6/Extension | Spotted B-75 Beast 11946 | -6/Extension | Destroyed B-75 Beast 11960 | -6/Extension | Spotted B-75 Beast 11973 | -6/Extension | Allies destroyed B-75 Beast 12106 | -6/Extension | Lost 4 allies 12257 | -6/Extension | Rescued a captive Derelict 12259 | -6/Extension | Rescued a captive Derelict 12320 | -6/Extension | First assault squad dispatched 12338 | -6/Extension | Rescued a captive Derelict 12414 | -6/Extension | Rescued a captive Derelict 12418 | -6/Extension | Rescued a captive Derelict 12419 | -6/Extension | Lost 6 allies 12591 | -6/Extension | Discovered new exit (range 10) 12592 | -6/Extension | Discovered new exit (range 6) 12606 | -6/Extension | Identified exit to Factory 12610 | -6/Extension | Identified exit to Cetus 12639 | -6/Extension | Entered Cetus 12639 | -6/Cetus | Accompanied by 9 allies (A7) 12644 | -6/Cetus | Acquired a Cetus Manufacturing Module code from A7 12659 | -6/Cetus | Spotted Cetus Guard 12659 | -6/Cetus | Spotted Cetus Guard 12660 | -6/Cetus | Allies destroyed Cetus Guard 12661 | -6/Cetus | Spotted Cetus Guard 12661 | -6/Cetus | Spotted Cetus Guard 12662 | -6/Cetus | Allies destroyed Cetus Guard 12662 | -6/Cetus | Allies destroyed Cetus Guard 12664 | -6/Cetus | Allies destroyed Cetus Guard 12801 | -6/Cetus | Escorted A7 to Cetus Mainframe 12812 | -6/Cetus | Started Cetus Manufacturing Module 12837 | -6/Cetus | Manufactured an Enhanced Grunt 12839 | -6/Cetus | Discovered new exit (range 15) 12862 | -6/Cetus | Manufactured an Enhanced Grunt 12887 | -6/Cetus | Manufactured an Enhanced Grunt 12912 | -6/Cetus | Manufactured an Enhanced Grunt 12937 | -6/Cetus | Manufactured an Enhanced Grunt 12992 | -6/Cetus | Spotted Cetus Guard 12992 | -6/Cetus | Spotted Cetus Guard 12995 | -6/Cetus | Spotted Cetus Guard 12998 | -6/Cetus | Spotted Cetus Guard 13000 | -6/Cetus | Allies destroyed Cetus Guard 13002 | -6/Cetus | Allies destroyed Cetus Guard 13012 | -6/Cetus | Allies destroyed Cetus Guard 13020 | -6/Cetus | Discovered exit to Factory (range 15) 13028 | -6/Cetus | Met Revision 17 13109 | -6/Cetus | Identified exit to Archives 13201 | -6/Cetus | Murdered A7 13202 | -6/Cetus | Extracted ID and sensor layout for unrecognized location from A7's data core 13240 | -6/Cetus | Entered Archives 13240 | -6/Archives | Accompanied by 12 allies 13328 | -6/Archives | Discovered new exit (range 16) 13361 | -6/Archives | Discovered new exit (range 16) 13528 | -6/Archives | Discovered exit to Factory (range 14) 13580 | -6/Archives | Identified exit to Hub_04(d) 13600 | -6/Archives | Entered Hub_04(d) 13600 | -6/Hub_04(d) | Accompanied by 11 allies 13687 | -6/Hub_04(d) | Discovered exit to Factory (range 6) 14388 | -6/Hub_04(d) | Discovered exit to Factory (range 8) 14650 | -6/Hub_04(d) | First assault squad dispatched 14667 | -6/Hub_04(d) | Network Hub disabled 14747 | -6/Hub_04(d) | Lost 4 allies 14793 | -6/Hub_04(d) | Network Hub disabled 14811 | -6/Hub_04(d) | Found Prototype Device 14811 | -6/Hub_04(d) | Identified Exp. Thermal Shield 14995 | -6/Hub_04(d) | Build established: Construct 15136 | -6/Hub_04(d) | Entered Factory 15136 | -5/Factory | Evolved 2 slots: Power x1, Propulsion x1 15280 | -5/Factory | Discovered new exit (range 15) 15303 | -5/Factory | Identified exit to Factory 15620 | -5/Factory | Discovered exit to Factory (range 10) 18680 | -5/Factory | Identified exit to Upper Caves 18892 | -5/Factory | Repaired Adv. KE Penetrator 19621 | -5/Factory | Loaded intel: 99 trap records 19747 | -5/Factory | Learned 2 Extension zone layouts 19795 | -5/Factory | Learned Extension security intel 19833 | -5/Factory | Learned 4 Armory zone layouts 19883 | -5/Factory | Learned 4 Research zone layouts 19953 | -5/Factory | Entered Upper Caves 20158 | -5/Upper Caves | Encountered a Warlord checkpoint 20180 | -5/Upper Caves | Identified exit to Upper Caves 20460 | -5/Upper Caves | Attracted the attention of an 0b10 checkpoint 20557 | -5/Upper Caves | Attracted the attention of an 0b10 outpost 20572 | -5/Upper Caves | Entered another Upper Caves area 20652 | -5/Upper Caves | Learned 8 Factory zone layouts 20728 | -5/Upper Caves | Learned 8 Factory zone layouts 21131 | -5/Upper Caves | Learned location of 1 exit from Factory 21170 | -5/Upper Caves | Discovered new exit (range 6) 21177 | -5/Upper Caves | Identified exit to Zhirov 21182 | -5/Upper Caves | Entered Zhirov 21183 | -5/Zhirov | Discovered new exit (range 4) 21212 | -5/Zhirov | Met Zhirov 21248 | -5/Zhirov | Learned location of Testing (-3) 21256 | -5/Zhirov | Zhirov requested help retrieving the SGEMP Prototype 21281 | -5/Zhirov | Found Alien Artifact 21281 | -5/Zhirov | Identified Integrated Dissipator 21281 | -5/Zhirov | Installed Integrated Dissipator, increased core heat dissipation (+20) 21304 | -5/Zhirov | Found Alien Artifact 21496 | -5/Zhirov | Identified exit to Proximity Caves 21497 | -5/Zhirov | Entered Proximity Caves 21500 | -4/Proximity Caves | Spotter reported a threat 22077 | -4/Proximity Caves | Discovered exit to Factory (range 11) 22121 | -4/Proximity Caves | Entered Factory 22121 | -4/Factory | Evolved 2 slots: Utility x2 22122 | -4/Factory | Identified exit to Research 22123 | -4/Factory | Identified exit to Upper Caves 22527 | -4/Factory | Fabricated Adv. Reaction Control System (x2) 23088 | -4/Factory | Identified exit to Armory 23173 | -4/Factory | Spotted B-86 Titan 24207 | -4/Factory | Learned Quarantine terminal intel 24221 | -4/Factory | Learned Testing interactive machine intel 24222 | -4/Factory | Learned Factory stockpile data 24223 | -4/Factory | Learned location of 2 exits from Factory 24224 | -4/Factory | Learned 2 Upper Caves zone layouts 24269 | -4/Factory | Learned location of 2 exits from Research 24484 | -4/Factory | Entered Upper Caves 24696 | -4/Upper Caves | Learned location of 1 exit from Proximity Caves 25182 | -4/Upper Caves | Discovered new exit (range 9) 25245 | -4/Upper Caves | Found Alien Artifact 25245 | -4/Upper Caves | Identified Core Expander 25245 | -4/Upper Caves | Installed Core Expander, added new Weapon slot 25293 | -4/Upper Caves | Identified exit to Upper Caves 25298 | -4/Upper Caves | Entered another Upper Caves area 25327 | -4/Upper Caves | Discovered exit to Research (range 16) 25528 | -4/Upper Caves | Entered Research 25528 | -3/Research | Evolved 2 slots: Utility x2 25529 | -3/Research | Identified exit to Research 25728 | -3/Research | Revision forces began assault on 0b10 25837 | -3/Research | Met up with Revision 17++ 25940 | -3/Research | Identified exit to Testing 25996 | -3/Research | Spotted B-86 Titan 26012 | -3/Research | Destroyed B-86 Titan 26041 | -3/Research | Lost 3 allies 26222 | -3/Research | Found Prototype Device 26222 | -3/Research | Identified Exp. Shield Generator 26228 | -3/Research | Research terminal network offline 26280 | -3/Research | Found Fusion Bomb Launcher 26910 | -3/Research | Spotted Striker 26916 | -3/Research | Spotted Striker 26928 | -3/Research | Destroyed Striker 26947 | -3/Research | Discovered exit to Research (range 15) 27060 | -3/Research | Spotted Striker 27068 | -3/Research | Destroyed Striker 27465 | -3/Research | Found Prototype Launcher 27473 | -3/Research | Identified Hellfire Missile Launcher 27514 | -3/Research | Repaired Adv. Reaction Control System 27517 | -3/Research | Spotted Striker 27526 | -3/Research | Spotted Striker 27538 | -3/Research | Destroyed Striker 27552 | -3/Research | Destroyed Striker 27667 | -3/Research | Spotted Executioner 27682 | -3/Research | Destroyed Executioner 27719 | -3/Research | Spotted Executioner 27792 | -3/Research | Spotted Striker 27820 | -3/Research | Lost 3 allies 27969 | -3/Research | Entered Testing 27970 | -3/Testing | Loaded intel: 18 interactive machine locations 28015 | -3/Testing | Spotted Striker 28130 | -3/Testing | Found Prototype Launcher 28135 | -3/Testing | Identified Tesla Bomb Launcher 28159 | -3/Testing | Spotted PX-F5UK2GVEXZ 28171 | -3/Testing | Found Prototype Device 28204 | -3/Testing | Identified Adv. EM Disruption Field 28463 | -3/Testing | Rewired PG-LARHBMY1J9 28923 | -3/Testing | Learned Access terminal intel 29003 | -3/Testing | Learned Access terminal intel 29049 | -3/Testing | Learned Quarantine terminal intel 29104 | -3/Testing | Learned location of 1 exit from Quarantine 29204 | -3/Testing | Entered Research 29204 | -2/Research | Evolved 2 slots: Utility x2 29478 | -2/Research | Discovered new exit (range 8) 29480 | -2/Research | Identified exit to Access 29494 | -2/Research | Found Prototype Processor 29499 | -2/Research | Identified Exp. Target Analyzer 29583 | -2/Research | Identified exit to Quarantine 29625 | -2/Research | Found Prototype Device 29640 | -2/Research | Identified Exp. Transmission Jammer 29661 | -2/Research | Repaired Centrium Medium Armor Plating? 29979 | -2/Research | Entered Quarantine 29981 | -2/Quarantine | Loaded intel: 15 terminal locations 30006 | -2/Quarantine | Found Prototype Processor 30015 | -2/Quarantine | Identified Exp. Terrain Scan Processor 30202 | -2/Quarantine | Cryocooling Duct disabled 30217 | -2/Quarantine | Ambient heat levels rising (+20) 30217 | -2/Quarantine | Non-combat units ordered to evacuate 30236 | -2/Quarantine | Cryocooling Duct disabled 30251 | -2/Quarantine | Ambient heat levels rising (+20) 30251 | -2/Quarantine | Combat units ordered to evacuate 30342 | -2/Quarantine | Found Alien Artifact 30342 | -2/Quarantine | Identified Core Reset Matrix 30342 | -2/Quarantine | Identified Transdimensional Reconstructor 30342 | -2/Quarantine | Used Core Reset Matrix 30346 | -2/Quarantine | Detected hypermatrix surge 30346 | -2/Quarantine | Sensed 5 artifacts in vicinity 30351 | -2/Quarantine | Quarantine Guard activated 30495 | -2/Quarantine | Spotted Quarantine Guard 30608 | -2/Quarantine | Spotted Quarantine Guard 30628 | -2/Quarantine | Learned 4 Section 7 zone layouts 30677 | -2/Quarantine | Identified exit to Section 7 30682 | -2/Quarantine | Build established: Alien-Construct 30722 | -2/Quarantine | Destroyed Quarantine Guard 30743 | -2/Quarantine | Spotted Quarantine Guard 30764 | -2/Quarantine | Learned 8 Research zone layouts 30771 | -2/Quarantine | Learned Research trap positions 30788 | -2/Quarantine | Learned 8 Research zone layouts 30801 | -2/Quarantine | Destroyed Quarantine Guard 30812 | -2/Quarantine | Spotted Quarantine Guard 30813 | -2/Quarantine | Learned Research security intel 30817 | -2/Quarantine | Spotted Quarantine Guard 30861 | -2/Quarantine | Destroyed Quarantine Guard 30866 | -2/Quarantine | Destroyed Quarantine Guard 30870 | -2/Quarantine | Spotted Quarantine Guard 30880 | -2/Quarantine | Destroyed Quarantine Guard 30896 | -2/Quarantine | Spotted Quarantine Guard 30904 | -2/Quarantine | Destroyed Quarantine Guard 30936 | -2/Quarantine | Spotted Quarantine Guard 30938 | -2/Quarantine | Spotted Quarantine Guard 30955 | -2/Quarantine | Destroyed Quarantine Guard 30972 | -2/Quarantine | Spotted Quarantine Guard 30981 | -2/Quarantine | Destroyed Quarantine Guard 30987 | -2/Quarantine | Destroyed Quarantine Guard 30998 | -2/Quarantine | Spotted Quarantine Guard 31036 | -2/Quarantine | Destroyed Quarantine Guard 31176 | -2/Quarantine | Destroyed Quarantine Guard 31778 | -2/Quarantine | Found Prototype Processor 31880 | -2/Quarantine | Identified Exp. Core Analyzer 32093 | -2/Quarantine | Found Unknown Device 32160 | -2/Quarantine | Identified Quantum Capacitor 32520 | -2/Quarantine | Found Subatomic Replicator 32730 | -2/Quarantine | Found Prototype Launcher 32762 | -2/Quarantine | Identified Mni. Smartbomb Launcher 32784 | -2/Quarantine | Spotted Fortress 32810 | -2/Quarantine | Spotted Quarantine Guard 32816 | -2/Quarantine | Entered Section 7 32817 | -2/Section 7 | Detected hypermatrix surge 32817 | -2/Section 7 | Sensed 23 artifacts in vicinity 32824 | -2/Section 7 | Found Integrated Mediator 32824 | -2/Section 7 | Installed Integrated Mediator, increased core attachment efficiency 33001 | -2/Section 7 | Found Integrated Reactor 33001 | -2/Section 7 | Installed Integrated Reactor, increased core energy generation (+10) 33102 | -2/Section 7 | Spotted S7 Guard 33142 | -2/Section 7 | Found Core Membrane 33158 | -2/Section 7 | Installed Core Membrane, gained immunity to corruption 33191 | -2/Section 7 | Spotted S7 Guard 33242 | -2/Section 7 | Spotted B-90 Cyclops 33320 | -2/Section 7 | Found Spacefold Activator 33395 | -2/Section 7 | Spotted Executioner 33399 | -2/Section 7 | Spotted Executioner 33428 | -2/Section 7 | Destroyed Executioner 33441 | -2/Section 7 | Destroyed Executioner 33445 | -2/Section 7 | Found Prototype Device 33445 | -2/Section 7 | Identified Adv. Kinecellerator 33531 | -2/Section 7 | Spotted B-99 Colossus 33546 | -2/Section 7 | Found Integrated Reactor 33546 | -2/Section 7 | Installed Integrated Reactor, increased core energy generation (+10) 33548 | -2/Section 7 | Found Integrated Reactor 33548 | -2/Section 7 | Installed Integrated Reactor, increased core energy generation (+10) 33564 | -2/Section 7 | Found LRC Insulator 33564 | -2/Section 7 | Installed LRC Insulator, gained EM resistance (25) 33568 | -2/Section 7 | Found LRC Insulator 33568 | -2/Section 7 | Installed LRC Insulator, gained EM resistance (25) 33587 | -2/Section 7 | Found Integrity Redistributor 33856 | -2/Section 7 | Spotted S7 Guard 34183 | -2/Section 7 | Found Prototype Launcher 34183 | -2/Section 7 | Identified Ragnarok Missile Launcher 34280 | -2/Section 7 | Entered Access 34280 | -1/Access | Evolved 2 slots: Utility x2 34533 | -1/Access | Found Prototype Processor 34537 | -1/Access | Identified Exp. Targeting Computer 34543 | -1/Access | Found Exp. Targeting Computer 34583 | -1/Access | Build established: Alien-Gunner 34868 | -1/Access | Spotted B-99 Colossus 35230 | -1/Access | Spotted B-99 Colossus 35481 | -1/Access | Spotted B-99 Colossus 35504 | -1/Access | Discovered new exit (range 8) 35507 | -1/Access | Identified exit to Command 35507 | -1/Access | Used Subatomic Replicator to replicate Integrity Redistributor 35605 | -1/Access | Entered Command 35614 | -1/Command | Found Exp. Core Analyzer 35808 | -1/Command | Spotted M Guard 35852 | -1/Command | Spotted M Guard 35856 | -1/Command | Spotted Combat Programmer 35856 | -1/Command | Spotted Combat Programmer 35889 | -1/Command | Destroyed Combat Programmer 35905 | -1/Command | First assault squad dispatched 35913 | -1/Command | Destroyed M Guard 35939 | -1/Command | Destroyed M Guard 35962 | -1/Command | Found Corrupted Zero-point Reactor 35966 | -1/Command | Found Corrupted Prototype Protection 35966 | -1/Command | Identified Hvy. Regenerative Plating 36077 | -1/Command | Found Corrupted Prototype Device 36077 | -1/Command | Identified Thermal Barrier 36086 | -1/Command | Found Corrupted Zero-point Reactor 36090 | -1/Command | Found Corrupted Hvy. Regenerative Plating 36142 | -1/Command | Destroyed Combat Programmer 36142 | -1/Command | All MAIN.C guards destroyed 36181 | -1/Command | Met MAIN.C 36200 | -1/Command | Destroyed MAIN.C Shell 36200 | -1/Command | 0b10 Conduit disabled 36202 | -1/Command | MAIN.C activated Command garrisons 36216 | -1/Command | Destroyed MAIN.C 36222 | -1/Command | Discovered new exit (range 40) 36222 | -1/Command | Discovered new exit (range 92) 36222 | -1/Command | Extracted map data and part IDs from MAIN.C's data core 36291 | -1/Command | Spotted B-99 Colossus 36878 | -1/Command | Found AEGIS Remote Shield 36880 | -1/Command | Found Spectral Analyzer 36882 | -1/Command | Found Exp. Weapon Cycler 37275 | -1/Command | Phase Generator disabled 37534 | -1/Command | Build established: Alien-Tank 38104 | -1/Command | Build established: Alien-Construct 38344 | -1/Command | Found Corrupted Exp. Targeting Computer 38372 | -1/Command | Found Corrupted Adv. Kinecellerator 40514 | -1/Command | Found Exp. Targeting Computer 40594 | -1/Command | Found Exp. Targeting Computer 40790 | -1/Command | Found Zero-point Reactor 40922 | -1/Command | Used Integrity Redistributor, redistributed integrity from core (-69) 41103 | -1/Command | Warped through subspace to slip node 41103 | -1/Command | Discovered new exit (range 5) 41118 | -1/Command | Entered Access_0 41119 | -1/Access_0 | Architect warped through subspace 41119 | -1/Access_0 | Sensed 3 artifacts in vicinity 41131 | -1/Access_0 | Destroyed A8 41161 | -1/Access_0 | Architect warped through subspace 41184 | -1/Access_0 | Architect warped through subspace 41196 | -1/Access_0 | Found Exp. Weapon Cycler 41199 | -1/Access_0 | Found Exp. Phase Shifter 41217 | -1/Access_0 | Architect warped through subspace 41225 | -1/Access_0 | Subspace Access Node disabled 41242 | -1/Access_0 | A6 warped into view 41250 | -1/Access_0 | Destroyed A6 41254 | -1/Access_0 | Architect warped through subspace 41293 | -1/Access_0 | Architect warped through subspace 41333 | -1/Access_0 | Architect warped through subspace 41368 | -1/Access_0 | Architect warped through subspace 41407 | -1/Access_0 | Destroyed A2 41411 | -1/Access_0 | Architect warped through subspace 41413 | -1/Access_0 | Extracted Singularity Gate Test 138-C access codes from A2's data core 41420 | -1/Access_0 | Singularity Gate disabled 41455 | -1/Access_0 | Architect warped through subspace 41477 | -1/Access_0 | A5 warped into view 41488 | -1/Access_0 | Destroyed A5 41491 | -1/Access_0 | Architect warped through subspace 41525 | -1/Access_0 | Architect warped through subspace 41557 | -1/Access_0 | Architect warped through subspace 41583 | -1/Access_0 | Architect warped through subspace 41586 | -1/Access_0 | Found Prototype Device 41586 | -1/Access_0 | Identified Desublimator 41651 | -1/Access_0 | Architect warped through subspace 41670 | -1/Access_0 | Architect warped through subspace 41674 | -1/Access_0 | Subspace Access Node disabled 41679 | -1/Access_0 | Subspace Access Node disabled 41694 | -1/Access_0 | A4 warped into view 41781 | -1/Access_0 | Architect warped through subspace 41800 | -1/Access_0 | Destroyed A4 41812 | -1/Access_0 | Architect warped through subspace 41876 | -1/Access_0 | Architect warped through subspace 41889 | -1/Access_0 | Subspace Access Node disabled 41908 | -1/Access_0 | Destroyed Architect 41937 | -1/Access_0 | Used Integrity Redistributor, redistributed integrity from core (-400) 41938 | -1/Access_0 | Core integrity fell below 50% 41946 | -1/Access_0 | Extracted unknown sensor trigger ID from Architect's data core 41947 | -1/Access_0 | Found Prototype Protection 41950 | -1/Access_0 | Identified Centrium Linked Plating 41953 | -1/Access_0 | Found Hpw. Transdimensional Reconstructor 41984 | -1/Access_0 | Found Hpw. Transdimensional Reconstructor 42050 | -1/Access_0 | Found Sigix Corpse 42216 | -1/Access_0 | Found Exp. Powered Armor 42218 | -1/Access_0 | Found Exp. Powered Armor 42317 | -1/Access_0 | Found Exp. Phase Shifter 42324 | -1/Access_0 | Found Exp. Phase Shifter 42326 | -1/Access_0 | Found Desublimator 42327 | -1/Access_0 | Found Exp. Phase Shifter 42363 | -1/Access_0 | A3 warped into view 42366 | -1/Access_0 | Destroyed A3 42524 | -1/Access_0 | Found Integrated Reactor 42524 | -1/Access_0 | Installed Integrated Reactor, increased core energy generation (+10) 42638 | -1/Access_0 | Found Integrated Mediator 42638 | -1/Access_0 | Installed Integrated Mediator, increased core attachment efficiency 42803 | -1/Access_0 | Warped through subspace to slip node 42803 | -1/Access_0 | Discovered new exit (range 8) 42805 | -1/Access_0 | Warped through subspace to slip node 42843 | *** | Heading to fleet! Last Messages --------------- 42524_ Integrated Reactor installed, core energy generation increased (+10). 42525_ Acquired Exp. Coolant Injector. 42547_ The protective shell folds into the floor. 42549_ Connecting with Architect Logs... 42549_ Current location identified: Access_0 42578_ Connecting with Gate Controls... 42635_ Workstation disabled. 42637_ Dropped Exp. Powered Armor. 42638_ Acquired Integrated Mediator. 42638_ Integrated Mediator installed, core attachment efficiency improved. 42639_ Acquired Exp. Powered Armor. 42691_ Acquired 25 matter. 42706_ Reinforced Shell breached. 42803_ Warped through subspace, drawn to slip node. 42803_ EXIT=FOUND 42805_ Warped through subspace, drawn to slip node. 42807_ Acquired Hvy. Regenerative Plating. 42841_ Dimensional Slip Node implodes. 42843_ The unstable cave ceiling collapses. Map ----- +----------------------------------------------------+ | | | | | | | | | | | | | | | | | | | | | | | | | | | | | | | | | ?????????????????????????????????????????????????? | | ?????????????????????????????????????????????????? | | ?????????????????????????????????????????????????? | | ?????????????????????????????????????????????????? | | ?????????????????????????????????????????????????? | | ?????????????????????????????????????????????????? | | ????????????????????????###??????????????????????? | | ???????????????????????## ##?????????????????????? | | ???????????????????????# #?????????????????????? | | ???????????????????????# @ #?????????????????????? | | ??????????????????????## #?????????????????????? | | ?????????????????????# #?????????????????????? | | ???????????????????# ????????????????????? | | ???????????????????# #???????????????????? | | ??????????????????# #??????????????????? | | ??????????????????# # #??????????????????? | | ??????????????????# #??????????????????? | | ??????????????????# #??????????????????? | | ??????????????????# #??????????????????? | | ??????????????????## ##??????????????????? | | ???????????????????# #???????????????????? | | ???????????????????### ###???????????????????? | | ?????????????????????#######?????????????????????? | | ?????????????????????????????????????????????????? | | ?????????????????????????????????????????????????? | | ?????????????????????????????????????????????????? | | ?????????????????????????????????????????????????? | | ?????????????????????????????????????????????????? | | ?????????????????????????????????????????????????? | | ?????????????????????????????????????????????????? | | ?????????????????????????????????????????????????? | | ?????????????????????????????????????????????????? | | ?????????????????????????????????????????????????? | | ?????????????????????????????????????????????????? | +----------------------------------------------------+ Best States ------------- Heat Dissipation 148 Coolant Potential 240 Energy Generation 110 Energy Capacity 1746 Matter Stores 800 Matter Capacity 800 Sight Range 24 Robot Scan Range 20 Terrain Scan Density 10 Jamming Range 22 Power Amplification 30 Additional Mass Support 20 Base Temperature (-) 200 Armor Coverage 1600 Resistance: EM 75 Utility Shielding 90 Point Defense Rating 480 Weapon Cycling 30 Phase Shifting 20 Evasion (%) 76 Targeting Accuracy 24 Core Analysis 8 Recoil Reduction 11 Kinecelleration 50 Offensive Hacking 14 Defensive Hacking 12 Item Schematics ----------------- Exp. Core Analyzer | -2/Quarantine | Scanalyzed Robot Schematics ------------------ None Fabricated ------------ Adv. Reaction Control System | x2 | -4/Factory | Preloaded Repaired ---------- Adv. KE Penetrator | 68% | -5/Factory Adv. Reaction Control System | 30% | -3/Research Centrium Medium Armor Plating | 48% | -2/Research Alien Tech Used ----------------- Integrated Dissipator Core Expander Core Reset Matrix Integrated Mediator Integrated Reactor Core Membrane LRC Insulator Subatomic Replicator Integrity Redistributor Transdimensional Reconstructor High-powered Transdimensional Reconstructor Achievements -------------- None Challenges ------------ None Game ------ Seed LinearBurstSuite Manual? 0 Play Time 06:19:09 Cumulative 1456.7 hours Start 2024.11.26 @ 21:55:23 End 2024.11.27 @ 21:33:54 Sessions 7 Manual Loads 0 Difficulty Rogue Special Mode None Game No. 1053 Rogue 1013 Adventurer 40 Explorer 0 Win Type 2 Total 185 Types 79/8/72/2/1/4/16/2/1 Lore% 94 Gallery% 95 Achievement% 87 Wizard Run 0 Options --------- Layout 0 ASCII 0 Keyboard 0 Movement Numpad Keybinds 0 Fullscreen 0 Font 20/Terminus Map View 76x50 Zoom Use 0% Tactical HUD 1 Map Filters NONE Filters NONE Steam 1 RUN: 76ee76ad-f404-4846-89be-2deb556716d6